Workbook

Sheet Input Parameter
A1: PCIe Product Configurator
D3: 1.) Select the appropriate configuration below.
D4: 2.) Start the configuration with the butten to the left
D5: 3.) Find the result in the next workbook.
A8: PCIe Configuration Parameter | D8: Please select the configuration parameters:
A10: Type: | D10: Type: Select if you want to configure an analyzer, an exerciser, a PTC, a Jammer or a combination. The only supported combination right now is the analyzer/exerciser combination
A12: Linkwidth: | D12: Link width: Select the desired link width. For both analyzer & exerciser, the maximum link width is x16. For Jammer, the max link width possible is x8
A14: Speed: | D14: Link Speed Select the desired speed. All Analyzer, exerciser and Jammer products are available to be licensed at 2.5Gb/s or 5.0Gb/s speed. Gen2Ready is H/W capable of 5.0Gb/s, but licensed to 2.5Gb/s only. Customer can upgrade at a later time.
A16: Probing: | D16: Probing: Select the desired type of probing: interposer probing or midbus probing. Note: We always recommend probing that supports full PCIe2 speed (5Gb/s), even for Gen2 ready systems. In that case, the customer only has to do a SW licence upgrade to go from Gen1 to Gen2 speed, whereas he has to upgrade the probing also if he selects 2.5Gb/s probing. Only configure Gen1 probing in case the customer really demands the lowest price possible.
D17: Note: This tool does not configure the split x4 midbus probe or swizzled x16 probe. Please look into the pricing tools or contact factory.
A19: P2L | D19: P2L: Select "yes" if the customer wants to connect Agilent logic analyzers with the PCIe System. (Only applies to PCIe Gen2 or Gen2Rdy systems)
A21: Extended Interface Module : | D21: Extended Interface Module : Select "yes" if the customer wants to use the extended interface module for fast sync . (Only applies to PCIe Gen2 or Gen2Rdy)
A26: Customer Parameter
A28: Your companies PAD: | B28: 0 | D28: Please select the your Customers Parameter:
D29: PAD: Type in the PAD of your customer into the according cell.
A33: Version 2.12 - July 2010
A34: Please report any errors back to Yenyi Fu

Sheet Data (hidden)
A1: String of selected value | B1: =INDEX(B5:B11,B2) -> Analyzer/Exerciser | C1: =INDEX(C5:C15,C2) -> Interposer - 8Gb/s | D1: =INDEX(D5:D8,D2) -> x16 | E1: =INDEX(E5:E7,E2) -> Gen3 - 8 Gb/s | F1: =INDEX(F5:F8,F2) -> n/a | G1: =INDEX(G5:G8,G2) -> n/a | H1: =INDEX(H5:H8,H2) -> no
A2: Index of selected value | B2: 3 | C2: 11 | D2: 4 | E2: 3 | F2: 1 | G2: 3 | H2: 2
B4: Type | C4: Probing | D4: Linkwidth | E4: Speed | F4: Probing Type | G4: P2L | H4: Extended Receiver
B5: Analyzer | C5: Midbus - 5Gb/s | D5: x1 | E5: Gen2 ready - 2.5Gb/s | F5: n/a | G5: P2L with 4 Flag Lines | H5: yes
B6: Exerciser | C6: Interposer - 5Gb/s | D6: x4 | E6: Gen2 - 5 Gb/s | G6: P2L with no Flags | H6: no
B7: Analyzer/Exerciser | C7: Flying Lead - 5Gb/s | D7: x8 | E7: Gen3 - 8 Gb/s | F7: uni-directional | G7: n/a
B8: PTC II | C8: Midbus - 2.5Gb/s | D8: x16
B9: Jammer | C9: Interposer - 2.5Gb/s
C10: Flying Lead - 2.5Gb/s
C11: Express Card - 2.5Gb/s
C12: Half Size Midbus - 5Gb/s
C13: Half Size Midbus - 2.5Gb/s
C14: Midbus - 8Gb/s
C15: Interposer - 8Gb/s

Sheet Recommended Config
B1: Recommended Configuration for PCI Express Protocol Test
A2: yes | B2: Line item | E2: Product # | F2: Description | G2: Qty | H2: Price Ea. | J2: PAD | K2: Net Price Ea. | L2: Extend Price
A3: yes | B3: Line item | E3: Product # | F3: Description | G3: Qty | H3: Price Ea. | I3: Price Ea. | J3: PAD | K3: Net Price Ea. | L3: Extend Price
A4: =IF(Data!E1=Data!E7,"yes","no") -> yes | B4: =IF(A4="yes",B60+1,0) -> 1 | C4: Gen3 Products (Digital Test Console)
A5: =IF(AND(OR(Data!B1=Data!B5,Data!B1=Data!B7), A4="yes"),"yes","no") -> yes | D5: Chassis | E5: U4002A | F5: =VLOOKUP(E5, 'Detailed Product Structure'!E$9:J$331, 4, FALSE) -> Digital Test Console Chassis two slot chassis | G5: =IF(A5="yes",1,0) -> 1 | H5: =VLOOKUP(E5, 'Detailed Product Structure'!$E$9:$J$331, 6, FALSE) -> 7500 | J5: ='Input Parameter'!$B$28 -> 0 | K5: =(1-J5)*H5 -> 7500 | L5: =G5*K5 -> 7500
A6: =$A$5 -> yes | E6: U4002A-SFT | F6: =VLOOKUP(E6, 'Detailed Product Structure'!E$9:J$331, 4, FALSE) -> Soft carrying bag for Digital test console two slot chassis | G6: =IF(A6="yes",1,0) -> 1 | H6: =VLOOKUP(E6, 'Detailed Product Structure'!$E$9:$J$331, 6, FALSE) -> 156 | J6: ='Input Parameter'!$B$28 -> 0 | K6: =(1-J6)*H6 -> 156 | L6: =G6*K6 -> 156
A7: =$A$5 -> yes | E7: U4002A-PCH | F7: =VLOOKUP(E7, 'Detailed Product Structure'!E$9:J$331, 4, FALSE) -> Accessories pouch kit for Digital test console two slot chassis | G7: 1 | H7: =VLOOKUP(E7, 'Detailed Product Structure'!$E$9:$J$331, 6, FALSE) -> 156 | J7: ='Input Parameter'!$B$28 -> 0 | K7: 156 | L7: 156
A8: yes | F8: Note: These soft carry case or accessory pouch are optional
A9: yes | E9: U4002A-2MC | F9: =VLOOKUP(E9, 'Detailed Product Structure'!E$9:J$331, 4, FALSE) -> PCIe cable (2.0m) | G9: 1 | H9: =VLOOKUP(E9, 'Detailed Product Structure'!$E$9:$J$331, 6, FALSE) -> 250 | J9: ='Input Parameter'!$B$28 -> 0 | K9: =(1-J9)*H9 -> 250 | L9: =G9*K9 -> 250
A10: yes | E10: U4002A-5MC | F10: =VLOOKUP(E10, 'Detailed Product Structure'!E$9:J$331, 4, FALSE) -> PCIe cable (5.0m) | G10: 1 | H10: =VLOOKUP(E10, 'Detailed Product Structure'!$E$9:$J$331, 6, FALSE) -> 450 | J10: ='Input Parameter'!$B$28 -> 0 | K10: =(1-J10)*H10 -> 450 | L10: =G10*K10 -> 450
A11: yes | F11: Note: Only one cable is required for operation, either the 2.0 m or 5.0 m.
A12: yes | E12: U4002A-EXP | F12: =VLOOKUP(E12, 'Detailed Product Structure'!E$9:J$331, 4, FALSE) -> PCI Express cable to express card adapter for laptop connections | G12: 1 | H12: =VLOOKUP(E12, 'Detailed Product Structure'!$E$9:$J$331, 6, FALSE) -> 450 | J12: ='Input Parameter'!$B$28 -> 0 | K12: =(1-J12)*H12 -> 450 | L12: =G12*K12 -> 450
A13: yes | E13: U4002A-SLT | F13: =VLOOKUP(E13, 'Detailed Product Structure'!E$9:J$331, 4, FALSE) -> PCI Express cable to slot adapter for desktop connections | G13: 1 | H13: =VLOOKUP(E13, 'Detailed Product Structure'!$E$9:$J$331, 6, FALSE) -> 450 | J13: ='Input Parameter'!$B$28 -> 0 | K13: =(1-J13)*H13 -> 450 | L13: =G13*K13 -> 450
A14: yes | F14: Note: One of the two cable adapters are required to be able to connect to a PC controller
A15: =IF(AND(OR(Data!$B$1=Data!$B$5,Data!$B$1=Data!$B$7), A4="yes"),"yes","no") -> yes | D15: Analyzer | E15: U4301A | F15: =VLOOKUP(E15, 'Detailed Product Structure'!E$9:J$331, 4, FALSE) -> Analyzer module for PCIe 8Gbps | G15: =IF(AND(A19="yes",A15="yes"),2,IF(A15="yes",1,)) -> 2 | H15: =VLOOKUP(E15, 'Detailed Product Structure'!$E$9:$J$331, 6, FALSE) -> 0 | J15: ='Input Parameter'!$B$28 -> 0 | K15: =(1-J15)*H15 -> 0 | L15: =G15*K15 -> 0
A16: =IF(AND($A$15="yes",Data!$D$1=Data!$D$5),"yes","no") -> no | E16: U4301A-A01 | F16: =VLOOKUP(E16, 'Detailed Product Structure'!E$9:J$331, 4, FALSE) -> Analyzer linkwidth x1 | G16: 0 | H16: =VLOOKUP(E16, 'Detailed Product Structure'!$E$9:$J$331, 6, FALSE) -> 27606 | J16: ='Input Parameter'!$B$28 -> 0 | K16: =(1-J16)*H16 -> 27606 | L16: =G16*K16 -> 0
A17: =IF(AND($A$15="yes",Data!$D$1=Data!$D$6),"yes","no") -> no | E17: U4301A-A04 | F17: =VLOOKUP(E17, 'Detailed Product Structure'!E$9:J$331, 4, FALSE) -> Analyzer linkwidth x4 | G17: 0 | H17: =VLOOKUP(E17, 'Detailed Product Structure'!$E$9:$J$331, 6, FALSE) -> 34056 | J17: ='Input Parameter'!$B$28 -> 0 | K17: 34056 | L17: 0
A18: =IF(AND($A$15="yes",Data!$D$1=Data!$D$7),"yes","no") -> no | E18: U4301A-A08 | F18: =VLOOKUP(E18, 'Detailed Product Structure'!E$9:J$331, 4, FALSE) -> Analyzer linkwidth x8 | G18: 0 | H18: =VLOOKUP(E18, 'Detailed Product Structure'!$E$9:$J$331, 6, FALSE) -> 41950.8 | J18: ='Input Parameter'!$B$28 -> 0 | K18: 41950.8 | L18: 0
A19: =IF(AND($A$15="yes",Data!$D$1=Data!$D$8),"yes","no") -> yes | E19: U4301A-A16 | F19: =VLOOKUP(E19, 'Detailed Product Structure'!E$9:J$331, 4, FALSE) -> Analyzer linkwidth x16 | G19: =G15 -> 2 | H19: =VLOOKUP(E19, 'Detailed Product Structure'!$E$9:$J$331, 6, FALSE) -> 38184 | J19: ='Input Parameter'!$B$28 -> 0 | K19: 38184 | L19: 76368
A20: =A15 -> yes | E20: U4301A-004 | F20: =VLOOKUP(E20, 'Detailed Product Structure'!E$9:J$331, 4, FALSE) -> Analyzer software license for trace memory 4GB | G20: =G15 -> 2 | H20: =VLOOKUP(E20, 'Detailed Product Structure'!$E$9:$J$331, 6, FALSE) -> -2060 | J20: ='Input Parameter'!$B$28 -> 0 | K20: -2060 | L20: -4120
A21: =IF(AND($A$15="yes",Data!$E$1=Data!$E$7),"yes","no") -> yes | E21: U4301A-v07 | F21: =VLOOKUP(E21, 'Detailed Product Structure'!E$9:J$331, 4, FALSE) -> Analyzer software license for PCIe 8Gbps, Spec version 0.7 (Available in August, 2010) | G21: =G15 -> 2 | H21: =VLOOKUP(E21, 'Detailed Product Structure'!$E$9:$J$331, 6, FALSE) -> 15435 | J21: ='Input Parameter'!$B$28 -> 0 | K21: 15435 | L21: 30870
A22: =IF(AND($A$15="yes",Data!$E$1=Data!$E$7),"yes","no") -> yes | E22: U4301A-AN3 | F22: =VLOOKUP(E22, 'Detailed Product Structure'!E$9:J$331, 4, FALSE) -> Analyzer software license for PCIe 8Gbps (Available in November, 2010) | G22: =G15 -> 2 | H22: =VLOOKUP(E22, 'Detailed Product Structure'!$E$9:$J$331, 6, FALSE) -> 23175 | J22: ='Input Parameter'!$B$28 -> 0 | K22: 23175 | L22: 46350
A23: =IF(AND($A$15="yes",Data!$E$1=Data!$E$7),"yes","no") -> yes | E23: U4301U-v10 | F23: =VLOOKUP(E23, 'Detailed Product Structure'!E$9:J$331, 4, FALSE) -> Analyzer software license upgrade from Spec version 0.7 to Spec version 1.0 for PCIe 8Gbps | G23: =G15 -> 2 | H23: =VLOOKUP(E23, 'Detailed Product Structure'!$E$9:$J$331, 6, FALSE) -> 5103 | J23: ='Input Parameter'!$B$28 -> 0 | K23: 5103 | L23: 10206
A24: =IF(COUNTIF(A21:A23, "yes"), "yes", "no") -> yes | F24: Note: If a customer needs the analyzer in August, quote U4301A-v07 with U4301U-v10. This way, the customer can take delivery in August (with Agilent Release 1.0, spec version 0.7). When release 2.0 is available in November (spec version 1.0) they will get the software upgrade. For customers that need equipment November and later quote ONLY U4301A-AN3. v07 and v10 will be discontinued after November (Release 2.0), only for early customers.
A25: =IF(AND(OR(Data!B1=Data!B6,Data!B1=Data!B7,Data!B1=Data!B8), A4="yes"),"yes","no") -> yes | D25: Exerciser | E25: U4305A | F25: =VLOOKUP(E25, 'Detailed Product Structure'!E$9:J$331, 4, FALSE) -> Exerciser module for PCIe 8Gbps | G25: 1 | H25: =VLOOKUP(E25, 'Detailed Product Structure'!$E$9:$J$331, 6, FALSE) -> 0 | J25: ='Input Parameter'!$B$28 -> 0 | K25: =(1-J25)*H25 -> 0 | L25: =G25*K25 -> 0
A26: =IF(AND($A$25="yes",Data!$D$1=Data!$D5),"yes","no") -> no | E26: U4305A-E01 | F26: =VLOOKUP(E26, 'Detailed Product Structure'!E$9:J$331, 4, FALSE) -> Exerciser board x1 for PCIe 8Gbps | G26: 0 | H26: =VLOOKUP(E26, 'Detailed Product Structure'!$E$9:$J$331, 6, FALSE) -> 17028 | J26: ='Input Parameter'!$B$28 -> 0 | K26: =(1-J26)*H26 -> 17028 | L26: =G26*K26 -> 0
A27: =IF(AND($A$25="yes",Data!$D$1=Data!$D6),"yes","no") -> no | E27: U4305A-E04 | F27: =VLOOKUP(E27, 'Detailed Product Structure'!E$9:J$331, 4, FALSE) -> Exerciser board x4 for PCIe 8Gbps | G27: 0 | H27: =VLOOKUP(E27, 'Detailed Product Structure'!$E$9:$J$331, 6, FALSE) -> 37926 | J27: ='Input Parameter'!$B$28 -> 0 | K27: 37926 | L27: 0
A28: =IF(AND($A$25="yes",Data!$D$1=Data!$D7),"yes","no") -> no | E28: U4305A-E08 | F28: =VLOOKUP(E28, 'Detailed Product Structure'!E$9:J$331, 4, FALSE) -> Exerciser board x8 for PCIe 8Gbps | G28: 0 | H28: =VLOOKUP(E28, 'Detailed Product Structure'!$E$9:$J$331, 6, FALSE) -> 53664 | J28: ='Input Parameter'!$B$28 -> 0 | K28: 53664 | L28: 0
A29: =IF(AND($A$25="yes",Data!$D$1=Data!$D8),"yes","no") -> yes | E29: U4305A-E16 | F29: =VLOOKUP(E29, 'Detailed Product Structure'!E$9:J$331, 4, FALSE) -> Exerciser board x16 for PCIe 8Gbps | G29: 1 | H29: =VLOOKUP(E29, 'Detailed Product Structure'!$E$9:$J$331, 6, FALSE) -> 69144 | J29: ='Input Parameter'!$B$28 -> 0 | K29: 69144 | L29: 69144
A30: =IF(AND($A$25="yes",Data!$E$1=Data!$E$7),"yes","no") -> yes | E30: U4305A-EX3 | F30: =VLOOKUP(E30, 'Detailed Product Structure'!E$9:J$331, 4, FALSE) -> Exerciser software license for PCIe 8Gbps | G30: 1 | H30: =VLOOKUP(E30, 'Detailed Product Structure'!$E$9:$J$331, 6, FALSE) -> 35604 | J30: ='Input Parameter'!$B$28 -> 0 | K30: 35604 | L30: 35604
A31: =IF(AND($A$25="yes",Data!$E$1=Data!$E$7),"yes","no") -> yes | E31: U4305A-LT3 | F31: =VLOOKUP(E31, 'Detailed Product Structure'!E$9:J$331, 4, FALSE) -> LTSSM software license | G31: 1 | H31: =VLOOKUP(E31, 'Detailed Product Structure'!$E$9:$J$331, 6, FALSE) -> 17028 | J31: ='Input Parameter'!$B$28 -> 0 | K31: 17028 | L31: 17028
A32: =IF(AND($A$25="yes",Data!$E$1=Data!$E$7),"yes","no") -> yes | E32: U4305U-EX3 | F32: =VLOOKUP(E32, 'Detailed Product Structure'!E$9:J$331, 4, FALSE) -> Exerciser software license for PCIe 8Gbps | G32: 1 | H32: =VLOOKUP(E32, 'Detailed Product Structure'!$E$9:$J$331, 6, FALSE) -> 35604 | J32: ='Input Parameter'!$B$28 -> 0 | K32: 35604 | L32: 35604
A33: =IF(COUNTIF(A30:A32, "yes"), "yes", "no") -> yes | F33: Note: If a customer needs the stimulus in July quote U4305A-LTSSM with U4301U-EX3. This way, the customer can take delivery in July (with Agilent Release 1.0). When release 2.0 is available in November (spec version 1.0) they will get the exerciser software upgrade. For customers that need equipment November and later quote both U4305A-LTSSM and U4305A-EX3.
A34: =A25 -> yes | E34: N5316A | F34: =VLOOKUP(E34, 'Detailed Product Structure'!E$9:J$331, 4, FALSE) -> Test Backplane for PCIe Gen2 & Gen3 | G34: 1 | H34: =VLOOKUP(E34, 'Detailed Product Structure'!$E$9:$J$331, 6, FALSE) -> 6194 | J34: ='Input Parameter'!$B$28 -> 0 | K34: =(1-J34)*H34 -> 6194 | L34: =G34*K34 -> 6194
A35: =IF(AND($A$15="yes",Data!$C$1=Data!$C$15),"yes","no") -> yes | D35: Probes | E35: U4321A | F35: =VLOOKUP(E35, 'Detailed Product Structure'!E$9:J$331, 4, FALSE) -> Slot interposer 3.0 for PCIe 8 Gbps | G35: 1 | H35: =VLOOKUP(E35, 'Detailed Product Structure'!$E$9:$J$331, 6, FALSE) -> 0 | J35: ='Input Parameter'!$B$28 -> 0 | K35: =(1-J35)*H35 -> 0 | L35: =G35*K35 -> 0
A36: =IF(AND($A$35="yes",Data!$D$1=Data!$D5),"yes","no") -> no | E36: U4321A-A01 | F36: =VLOOKUP(E36, 'Detailed Product Structure'!E$9:J$331, 4, FALSE) -> Slot interposer 3.0 for PCIe 8Gbps x1 | G36: 0 | H36: =VLOOKUP(E36, 'Detailed Product Structure'!$E$9:$J$331, 6, FALSE) -> 11352 | J36: ='Input Parameter'!$B$28 -> 0 | K36: 11352 | L36: 0
A37: =IF(AND($A$35="yes",Data!$D$1=Data!$D6),"yes","no") -> no | E37: U4321A-A04 | F37: =VLOOKUP(E37, 'Detailed Product Structure'!E$9:J$331, 4, FALSE) -> Slot interposer 3.0 for PCIe 8Gbps x4 | G37: 0 | H37: =VLOOKUP(E37, 'Detailed Product Structure'!$E$9:$J$331, 6, FALSE) -> 14964 | J37: ='Input Parameter'!$B$28 -> 0 | K37: 14964 | L37: 0
A38: =IF(AND($A$35="yes",Data!$D$1=Data!$D7),"yes","no") -> no | E38: U4321A-A08 | F38: =VLOOKUP(E38, 'Detailed Product Structure'!E$9:J$331, 4, FALSE) -> Slot interposer 3.0 for PCIe 8Gbps x8 | G38: 0 | H38: =VLOOKUP(E38, 'Detailed Product Structure'!$E$9:$J$331, 6, FALSE) -> 17028 | J38: ='Input Parameter'!$B$28 -> 0 | K38: 17028 | L38: 0
A39: =IF(AND($A$35="yes",Data!$D$1=Data!$D8),"yes","no") -> yes | E39: U4321A-A16 | F39: =VLOOKUP(E39, 'Detailed Product Structure'!E$9:J$331, 4, FALSE) -> Slot interposer 3.0 for PCIe 8Gbps x16 | G39: 1 | H39: =VLOOKUP(E39, 'Detailed Product Structure'!$E$9:$J$331, 6, FALSE) -> 19917.6 | J39: ='Input Parameter'!$B$28 -> 0 | K39: 19917.6 | L39: 19917.6
A40: =IF(AND($A$15="yes",Data!$C$1=Data!$C$14),"yes","no") -> no | E40: U4322A | F40: =VLOOKUP(E40, 'Detailed Product Structure'!E$9:J$331, 4, FALSE) -> Mid-bus probe 3.0 for PCIe 8Gbps (bi-directional x8) | G40: =IF(AND(A19="yes",A40="yes"),2,IF(A40="yes",1,)) -> 0 | H40: =VLOOKUP(E40, 'Detailed Product Structure'!$E$9:$J$331, 6, FALSE) -> 26832 | J40: ='Input Parameter'!$B$28 -> 0 | K40: 26832 | L40: 0
A41: yes
A42: =IF(OR(Data!E1=Data!E5, Data!E1=Data!E6),"yes","no") -> no | B42: =IF(A42="yes",1,0) -> 0 | C42: E2960B Series - Gen2 or Gen2Rdy
A44: =IF(AND(OR(Data!B1=Data!B5,Data!B1=Data!B7),NOT(AND(Data!D1=Data!D8,Data!H1=Data!H5)), A42="yes"),"yes","no") -> no | E44: N5302A | F44: ='Detailed Product Structure'!H169 -> 2-slot portable chassis | G44: =IF(A44="yes",1,0) -> 0 | H44: 4513 | I44: =H44*G44 -> 0 | J44: ='Input Parameter'!$B$28 -> 0 | K44: =(1-J44)*H44 -> 4513 | L44: =G44*K44 -> 0
A45: =IF(AND(OR(Data!B1=Data!B5,Data!B1=Data!B7),AND(Data!D1=Data!D8,Data!H1=Data!H5), A42="yes"),"yes","no") -> no | E45: N5304A | F45: ='Detailed Product Structure'!H171 -> 4-slot chassis | G45: =IF(A45="yes",1,0) -> 0 | H45: 5701 | I45: =H45*G45 -> 0 | J45: ='Input Parameter'!$B$28 -> 0 | K45: =(1-J45)*H45 -> 5701 | L45: =G45*K45 -> 0
A46: =IF(AND(OR(Data!B1=Data!B5,Data!B1=Data!B7), A42="yes"),"yes","no") -> no | E46: E2960B-LAN | F46: ='Detailed Product Structure'!H12 -> USB to LAN Adapter for Chassis to Controller Connectivity | G46: =IF(A46="yes",1,0) -> 0 | H46: 65.65 | I46: =H46*G46 -> 0 | J46: ='Input Parameter'!$B$28 -> 0 | K46: =(1-J46)*H46 -> 65.65 | L46: 0
A47: =A48 -> no
A48: =IF(AND(OR(Data!$B$1=Data!$B$5,Data!$B$1=Data!$B$7), A42="yes"),"yes","no") -> no | D48: Analyzer | E48: ='Detailed Product Structure'!E20 -> N5306A | F48: ='Detailed Product Structure'!H20 -> Analyzer Module for PCIe 5Gb/s (requires 2 for x 16) | G48: =IF(AND(OR(A52="yes",A56="yes"),A48="yes"),2,IF(A48="yes",1,)) -> 0 | H48: 30300 | I48: 0 | J48: ='Input Parameter'!$B$28 -> 0 | K48: =(1-J48)*H48 -> 30300 | L48: =G48*K48 -> 0
A49: =IF(AND($A$48="yes",Data!$D$1=Data!$D$5,Data!$E$1=Data!$E$6),"yes","no") -> no | E49: ='Detailed Product Structure'!E25 -> N5306A-A01 | F49: ='Detailed Product Structure'!H25 -> Analyzer SW License x1 for PCIe 5Gb/s | G49: =IF(A49="yes",1,0) -> 0 | H49: 12995 | I49: 0 | J49: ='Input Parameter'!$B$28 -> 0 | K49: =(1-J49)*H49 -> 12995 | L49: 0
A50: =IF(AND($A$48="yes",Data!$D$1=Data!$D$6,Data!$E$1=Data!$E$6),"yes","no") -> no | E50: ='Detailed Product Structure'!E26 -> N5306A-A04 | F50: ='Detailed Product Structure'!H26 -> Analyzer SW License x4 for PCIe 5Gb/s | G50: 0 | H50: 19110 | I50: 0 | J50: ='Input Parameter'!$B$28 -> 0 | K50: =(1-J50)*H50 -> 19110 | L50: 0
A51: =IF(AND($A$48="yes",Data!$D$1=Data!$D$7,Data!$E$1=Data!$E$6),"yes","no") -> no | E51: ='Detailed Product Structure'!E27 -> N5306A-A08 | F51: ='Detailed Product Structure'!H27 -> Analyzer SW License x8 for PCIe 5Gb/s | G51: 0 | H51: 25443 | I51: 0 | J51: ='Input Parameter'!$B$28 -> 0 | K51: =(1-J51)*H51 -> 25443 | L51: 0
A52: =IF(AND(A48="yes",Data!$D$1=Data!$D$8,Data!$E$1=Data!$E$6),"yes","no") -> no | E52: ='Detailed Product Structure'!E28 -> N5306A-A16 | F52: ='Detailed Product Structure'!H28 -> Analyzer SW License x16 for PCIe 5Gb/s | G52: =IF(A52="yes",2,0) -> 0 | H52: 21730 | I52: 0 | J52: ='Input Parameter'!$B$28 -> 0 | K52: =(1-J52)*H52 -> 21730 | L52: 0
A53: =IF(AND(A48="yes",Data!$D$1=Data!$D$5,Data!$E$1=Data!$E$5),"yes","no") -> no | E53: ='Detailed Product Structure'!E29 -> N5306A-G01 | F53: ='Detailed Product Structure'!H29 -> Analyzer SW License x1 for PCIe 2.5 Gb/s | G53: 0 | H53: -24886 | I53: 0 | J53: ='Input Parameter'!$B$28 -> 0 | K53: =H53 -> -24886 | L53: =G53*K53 -> 0
A54: =IF(AND(A48="yes",Data!$D$1=Data!$D$6,Data!$E$1=Data!$E$5),"yes","no") -> no | E54: ='Detailed Product Structure'!E30 -> N5306A-G04 | F54: ='Detailed Product Structure'!H30 -> Analyzer SW License x4 for PCIe 2.5 Gb/s | G54: 0 | H54: -19416 | I54: 0 | J54: ='Input Parameter'!$B$28 -> 0 | K54: =H54 -> -19416 | L54: 0
A55: =IF(AND(A48="yes",Data!$D$1=Data!$D$7,Data!$E$1=Data!$E$5),"yes","no") -> no | E55: ='Detailed Product Structure'!E31 -> N5306A-G08 | F55: ='Detailed Product Structure'!H31 -> Analyzer SW License x8 for PCIe 2.5 Gb/s | G55: 0 | H55: 179 | I55: 0 | J55: ='Input Parameter'!$B$28 -> 0 | K55: =H55 -> 179 | L55: 0
A56: =IF(AND(A48="yes",Data!$D$1=Data!$D$8,Data!$E$1=Data!$E$5),"yes","no") -> no | E56: ='Detailed Product Structure'!E32 -> N5306A-G16 | F56: ='Detailed Product Structure'!H32 -> Analyzer SW License x16 for PCIe 2.5Gb/s | G56: =IF(A56="yes",2,0) -> 0 | H56: -8639 | I56: 0 | J56: ='Input Parameter'!$B$28 -> 0 | K56: =H56 -> -8639 | L56: 0
A57: =IF(AND(A48="yes",Data!$H$1=Data!$H$5),"yes","no") -> no | E57: ='Detailed Product Structure'!E33 -> N5322A | F57: ='Detailed Product Structure'!H33 -> Extended Interface Module for PCIe 5Gb/s | G57: =IF(AND(OR(A52="yes",A56="yes"),A57="yes"),2,IF(A57="yes",1,)) -> 0 | H57: 14856 | I57: 0 | J57: ='Input Parameter'!$B$28 -> 0 | K57: =(1-J57)*H57 -> 14856 | L57: 0
A58: no
A59: =A60 -> no
A60: =IF(AND(Data!B1=Data!B8, Data!D1=Data!D5, , A42="yes"),"yes","no") -> no | D60: Exerciser | E60: E2969B | F60: ='Detailed Product Structure'!H16 -> PTC 2.0 | G60: =IF(A60="yes",1,0) -> 0 | H60: ='Detailed Product Structure'!J16 -> 0 | I60: =H60*G60 -> 0 | J60: ='Input Parameter'!$B$28 -> 0 | K60: =(1-J60)*H60 -> 0 | L60: =G60*K60 -> 0
A61: =A60 -> no | F61: Note: The E2969B product number is for backward compatibility (PTC1 is E2969A) the actual hardware and options for PTCII is listed below.
A62: =IF(AND(OR(Data!B1=Data!B6,Data!B1=Data!B7,Data!B1=Data!B8), A42="yes"),"yes","no") -> no | E62: ='Detailed Product Structure'!E35 -> N5309A | F62: ='Detailed Product Structure'!H35 -> Half Size Exerciser Module for PCIe 5Gb/s | G62: 0 | H62: ='Detailed Product Structure'!J35 -> 0 | I62: 0 | J62: ='Input Parameter'!$B$28 -> 0 | K62: 0 | L62: 0
A63: =IF(AND($A$62="yes",Data!$D$1=Data!$D5),"yes","no") -> no | E63: ='Detailed Product Structure'!E54 -> N5309A-E01 | F63: ='Detailed Product Structure'!H54 -> Half Sized Exerciser and LTSSM Board x1 for PCIe 5Gb/s | G63: 0 | H63: 9359 | I63: 0 | J63: ='Input Parameter'!$B$28 -> 0 | K63: 9359 | L63: 0
A64: =IF(AND($A$62="yes",Data!$D$1=Data!$D6),"yes","no") -> no | E64: ='Detailed Product Structure'!E55 -> N5309A-E04 | F64: ='Detailed Product Structure'!H55 -> Half Sized Exerciser and LTSSM Board x4 for PCIe 5Gb/s | G64: 0 | H64: 21226 | I64: 0 | J64: ='Input Parameter'!$B$28 -> 0 | K64: 21226 | L64: 0
A65: =IF(AND($A$62="yes",Data!$D$1=Data!$D7),"yes","no") -> no | E65: ='Detailed Product Structure'!E56 -> N5309A-E08 | F65: ='Detailed Product Structure'!H56 -> Half Sized Exerciser and LTSSM Board x8 for PCIe 5Gb/s | G65: 0 | H65: 32260 | I65: 0 | J65: ='Input Parameter'!$B$28 -> 0 | K65: 32260 | L65: 0
A66: =IF(AND($A$62="yes",Data!$D$1=Data!$D8),"yes","no") -> no | E66: ='Detailed Product Structure'!E57 -> N5309A-E16 | F66: ='Detailed Product Structure'!H57 -> Half Sized Exerciser and LTSSM Board x16 for PCIe 5Gb/s | G66: 0 | H66: 43491 | I66: 0 | J66: ='Input Parameter'!$B$28 -> 0 | K66: 43491 | L66: 0
A67: =IF(AND(OR(Data!B1=Data!B6,Data!B1=Data!B7),Data!$E$1=Data!$E5),"yes","no") -> no | E67: ='Detailed Product Structure'!E59 -> N5309A-EX1 | F67: ='Detailed Product Structure'!H59 -> Exerciser SW License and LTSSM for PCIe 2.5Gb/s | G67: 0 | H67: 28129 | I67: 0 | J67: ='Input Parameter'!$B$28 -> 0 | K67: 28129 | L67: 0
A68: =IF(AND(OR(Data!B1=Data!B6,Data!B1=Data!B7),Data!$E$1=Data!$E6),"yes","no") -> no | E68: ='Detailed Product Structure'!E60 -> N5309A-EX2 | F68: ='Detailed Product Structure'!H60 -> Exerciser SW License and LTSSM for PCIe 5Gb/s | G68: 0 | H68: 49054 | I68: 0 | J68: ='Input Parameter'!$B$28 -> 0 | K68: 49054 | L68: 0
A69: =IF(AND($A$62="yes"),"yes","no") -> no | E69: ='Detailed Product Structure'!E62 -> N5309A-PTC | F69: ='Detailed Product Structure'!H62 -> Exerciser SW License PTC | G69: 0 | H69: ='Detailed Product Structure'!J62 -> 0 | I69: 0 | J69: ='Input Parameter'!$B$28 -> 0 | K69: 0 | L69: 0
A70: =IF(AND($A$62="yes"),"yes","no") -> no | E70: ='Detailed Product Structure'!E63 -> N5309A-COM | F70: ='Detailed Product Structure'!H63 -> Exerciser SW License Compliance Assured Test Package | G70: 0 | H70: 16059 | I70: 0 | J70: ='Input Parameter'!$B$28 -> 0 | K70: 16059 | L70: 0
A71: =A62 -> no | F71: Note: We always recommend the Exerciser Compliacne Assured Test Package with every Exerciser or PTC
A72: =IF(OR(Data!B10=Data!B15,Data!B10=Data!B16,Data!B10=Data!B17),"yes","no") -> yes
A73: =IF(AND(Data!B1=Data!B9, A42="yes"),"yes","no") -> no | D73: Jammer | E73: ='Detailed Product Structure'!E142 -> N5323A | F73: ='Detailed Product Structure'!H142 -> Jammer Module for PCIe 5Gb/s | G73: =IF(A73="yes",1,0) -> 0 | H73: ='Detailed Product Structure'!J142 -> 0 | I73: =H73*G73 -> 0 | J73: ='Input Parameter'!$B$28 -> 0 | K73: =(1-J73)*H73 -> 0 | L73: =G73*K73 -> 0
A74: =IF(AND($A$73="yes",Data!$D$1=Data!$D5),"yes","no") -> no | E74: ='Detailed Product Structure'!E161 -> N5323A-J01 | F74: ='Detailed Product Structure'!H161 -> Jammer Module x1 for PCIe 5Gb/s | G74: 0 | H74: 9442 | I74: 0 | J74: ='Input Parameter'!$B$28 -> 0 | K74: 9442 | L74: 0
A75: =IF(AND($A$73="yes",Data!$D$1=Data!$D6),"yes","no") -> no | E75: ='Detailed Product Structure'!E162 -> N5323A-J04 | F75: ='Detailed Product Structure'!H162 -> Jammer Module x4 for PCIe 5Gb/s | G75: 0 | H75: 28812 | I75: 0 | J75: ='Input Parameter'!$B$28 -> 0 | K75: 28812 | L75: 0
A76: =IF(AND($A$73="yes",Data!$D$1=Data!$D7),"yes","no") -> no | E76: ='Detailed Product Structure'!E163 -> N5323A-J08 | F76: ='Detailed Product Structure'!H163 -> Jammer Module x8 for PCIe 5Gb/s | G76: 0 | H76: 39102 | I76: 0 | J76: ='Input Parameter'!$B$28 -> 0 | K76: 39102 | L76: 0
A77: =IF(AND($A$73="yes",Data!$D$1=Data!$D8),"yes","no") -> no | F77: Note: There is no x16 linkwidth Jammer. Max linkwidth is x8. Please go back and select x8 linkwidth for the right configuration
A78: =IF(AND(Data!B1=Data!B9,Data!$E$1=Data!$E5),"yes","no") -> no | E78: ='Detailed Product Structure'!E165 -> N5323A-JM1 | F78: ='Detailed Product Structure'!H165 -> Gen2 Ready Jammer SW License : Jammer at 2.5Gb/s | G78: 0 | H78: 17493 | I78: 0 | J78: ='Input Parameter'!$B$28 -> 0 | K78: 17493 | L78: 0
A79: =IF(AND(Data!B1=Data!B9,Data!$E$1=Data!$E6),"yes","no") -> no | E79: ='Detailed Product Structure'!E166 -> N5323A-JM2 | F79: ='Detailed Product Structure'!H166 -> Jammer SW License : Jammer at 5 Gb/s | G79: 0 | H79: 41160 | I79: 0 | J79: ='Input Parameter'!$B$28 -> 0 | K79: 41160 | L79: 0
A80: =IF(AND($A$73="yes"),"yes","no") -> no | E80: ='Detailed Product Structure'!E167 -> N5323A-SCR | F80: ='Detailed Product Structure'!H167 -> Jammer SW License : Jammer Scripts | G80: 0 | H80: 10310 | I80: 0 | J80: ='Input Parameter'!$B$28 -> 0 | K80: 10310 | L80: 0
A81: =A73 -> no | F81: Note: We always recommend the Jammer Scripts Package with every Jammer
A82: yes
A83: =IF(OR(A96="yes", AND($A$48="yes",OR(Data!$C$1=Data!$C$5, Data!$C$1=Data!$C$8),OR(Data!$D$1=Data!$D$5,Data!$D$1=Data!$D$6,Data!$D$1=Data!$D$7, Data!$D$1=Data!$D$8))),"yes","no") -> no | D83: Probes | E83: ='Detailed Product Structure'!E65 -> N4241A | F83: ='Detailed Product Structure'!H65 -> Midbus Probe 2.0 bi-directional x8 for PCIe 5Gb/s | G83: =IF(AND(A83="yes"),IF(Data!$D$1=Data!$D$8,2,1),) -> 0 | H83: 22268 | I83: 0 | J83: ='Input Parameter'!$B$28 -> 0 | K83: 22268 | L83: 0
A84: =A83 -> no | F84: Note: We always recommend the Gen2 Mid-bus over the Gen1 Mid-bus probe (N4221A)
A85: =A83 -> no | E85: ='Detailed Product Structure'!E68 -> N4241A-MBI | F85: ='Detailed Product Structure'!H68 -> Set of Midbus Interposer x1, x4, x8, x16 for straight midbus | G85: =IF(AND(A85="yes"),IF(Data!$D$1=Data!$D$8,2,1),) -> 0 | H85: 1919 | I85: 0 | J85: ='Input Parameter'!$B$28 -> 0 | K85: 1919 | L85: 0
A86: =A83 -> no | F86: Note: We always recommend the midbus interposer if the customer purchases midbus probe.
A87: =IF(AND($A$48="yes",OR(Data!$C$1=Data!$C$12, Data!$C$1=Data!$C$13)),"yes","no") -> no | E87: ='Detailed Product Structure'!E70 -> N5328A | F87: ='Detailed Product Structure'!H70 -> Midbus Probe 2.0 bi-directional x4 for PCIe 5Gb/s | G87: =IF((A87="yes"),1,0) -> 0 | H87: 24902 | I87: 0 | J87: ='Input Parameter'!$B$28 -> 0 | K87: 24902 | L87: 0
A88: =A87 -> no | F88: Note: We always recommend the Gen2 half size Midbus Probe over the Gen1 half size Midbus Probe (N4228A)
A89: =IF(AND($A$87="yes",Data!$D$1=Data!$D$8),"yes","no") -> no | F89: Note: The half size probe can not probe a x16 link. Double check to ensure you have the right probe selected. The full size probe part number is N4241A.
A90: =IF(AND($A$48="yes",OR(Data!$C$1=Data!$C$7, Data!$C$1=Data!$C$10)),"yes","no") -> no | E90: ='Detailed Product Structure'!E74 -> N4241F | F90: ='Detailed Product Structure'!H76 -> Flying Lead Probe 2.0 Kit bi-directional x8 for PCIe 5Gb/s | G90: =IF(AND(A90="yes"),IF(Data!$D$1=Data!$D$8,2,1),) -> 0 | H90: 25675 | I90: =H90*G90 -> 0 | J90: ='Input Parameter'!$B$28 -> 0 | K90: =(1-J90)*H90 -> 25675 | L90: =G90*K90 -> 0
A91: =IF(AND($A$48="yes",OR(Data!$C$1=Data!$C$7, Data!$C$1=Data!$C$10)),"yes","no") -> no | E91: N4241Z | F91: ='Detailed Product Structure'!H78 -> ZIF Flying Lead Probe 2.0 bi-directional x8 for PCIe 5Gb/s | G91: =IF(AND(A90="yes"),IF(Data!$D$1=Data!$D$8,2,1),) -> 0 | H91: ='Detailed Product Structure'!J78 -> 25725 | I91: 0 | J91: ='Input Parameter'!$B$28 -> 0 | K91: 25725 | L91: 0
A92: =A90 -> no | F92: Note: We always recommend the Gen2 Flying Leads Probe (N4241F or N4241Z) over the Gen1 Flying Lead Probe (N4221F)
A93: =A92 -> no | F93: Note: We recently introduced the N4241Z ZIF Flying Leads Probe. We recommend the N4241Z probe over the N4241F, Pub 5990-4123EN has more information
A94: =IF(AND(A48="yes",Data!$C$1=Data!$C$5,Data!$D$1=Data!$D$8,Data!$F$1=Data!$F$6),"yes","no") -> no | E94: ='Detailed Product Structure'!E84 -> N4242A | F94: ='Detailed Product Structure'!H84 -> Midbus Probe 2.0 swizzled x16 for PCIe 5Gb/s | G94: =IF(A94="yes",1,0) -> 0 | H94: 45820 | I94: 0 | J94: ='Input Parameter'!$B$28 -> 0 | K94: 45820 | L94: 0
A95: no | E95: ='Detailed Product Structure'!E88 -> N4243A | F95: ='Detailed Product Structure'!H88 -> Midbus Probe 2.0 split x4 for PCIe 5Gb/s | G95: =IF(A95="yes",1,0) -> 0 | H95: 24623 | I95: 0 | J95: ='Input Parameter'!$B$28 -> 0 | K95: 24623 | L95: 0
A96: =IF(AND($A$48="yes",Data!$C$1=Data!$C$11),"yes","no") -> no | E96: ='Detailed Product Structure'!E11 -> E2960B-MEC | F96: ='Detailed Product Structure'!H11 -> Express Card Adapter for PCIe 2.5Gb/s for N4241A | G96: =IF(A96="yes",1,0) -> 0 | H96: 531 | I96: 0 | J96: ='Input Parameter'!$B$28 -> 0 | K96: 531 | L96: =G96*K96 -> 0
A97: =A96 -> no | F97: Note: Express card adapter requires an N4241A
A98: no | D98: Upgrades | E98: ='Detailed Product Structure'!E93 -> N5310U | F98: ='Detailed Product Structure'!H93 -> Upgrade of Analyzer SW License for E2960B | G98: =IF(A98="yes",1,0) -> 0 | H98: ='Detailed Product Structure'!J93 -> 0 | I98: 0 | J98: ='Input Parameter'!$B$28 -> 0 | K98: 0 | L98: 0
A99: no | E99: ='Detailed Product Structure'!E94 -> N5310U-E12 | F99: ='Detailed Product Structure'!H94 -> Exerciser SW License Upgrade for Exerciser and LTSSM from 2.5Gb/s to 5Gb/s | G99: =IF(A99="yes",1,0) -> 0 | H99: 25694 | I99: 0 | J99: ='Input Parameter'!$B$28 -> 0 | K99: 25694 | L99: 0
A100: no | E100: ='Detailed Product Structure'!E95 -> N5310U-EX1 | F100: ='Detailed Product Structure'!H95 -> Exerciser SW License and LTSSM at 5Gb/s | G100: 0 | H100: 27577 | I100: 0 | J100: ='Input Parameter'!$B$28 -> 0 | K100: 27577 | L100: 0
A101: no | E101: ='Detailed Product Structure'!E96 -> N5310U-EX2 | F101: ='Detailed Product Structure'!H96 -> Exerciser SW License and LTSSM at 2.5Gb/s | G101: 0 | H101: 48569 | I101: 0 | J101: ='Input Parameter'!$B$28 -> 0 | K101: 48569 | L101: 0
A102: no | E102: ='Detailed Product Structure'!E102 -> N5310U-J12 | F102: ='Detailed Product Structure'!H102 -> Jammer SW License Upgrade from 2.5Gb/s to 5Gb/s | H102: 28400 | I102: 0 | J102: ='Input Parameter'!$B$28 -> 0 | K102: 28400 | L102: 0
A103: no | E103: ='Detailed Product Structure'!E103 -> N5310U-JM1 | F103: ='Detailed Product Structure'!H103 -> Jammer SW License at 2.5Gb/s | H103: 17000 | I103: 0 | J103: ='Input Parameter'!$B$28 -> 0 | K103: 17000 | L103: 0
A104: no | E104: ='Detailed Product Structure'!E104 -> N5310U-JM2 | F104: ='Detailed Product Structure'!H104 -> Jammer SW License at 5Gb/s | H104: 40000 | I104: 0 | J104: ='Input Parameter'!$B$28 -> 0 | K104: 40000 | L104: 0
A105: no | E105: ='Detailed Product Structure'!E105 -> N5310U-SCR | F105: ='Detailed Product Structure'!H105 -> Jammer SW Licnese : Jammer Scripts | H105: 10310 | I105: 0 | J105: ='Input Parameter'!$B$28 -> 0 | K105: 10310 | L105: 0
A106: no | E106: ='Detailed Product Structure'!E97 -> N5310U-G14 | F106: ='Detailed Product Structure'!H97 -> Analyzer SW License Upgrade from x1 at 2.5Gb/s to x4 at 2.5Gb/s | G106: 0 | H106: 4378 | I106: =H106*G106 -> 0 | J106: ='Input Parameter'!$B$28 -> 0 | K106: 4378 | L106: =G106*K106 -> 0
A107: no | E107: ='Detailed Product Structure'!E98 -> N5310U-G18 | F107: ='Detailed Product Structure'!H98 -> Analyzer SW License Upgrade from x1 at 2.5Gb/s to x8 at 2.5Gb/s | G107: 0 | H107: 29400 | I107: 0 | J107: ='Input Parameter'!$B$28 -> 0 | K107: 29400 | L107: 0
A108: no | E108: ='Detailed Product Structure'!E100 -> N5310U-G48 | F108: ='Detailed Product Structure'!H100 -> Analyzer SW License Upgrade from x4 at 2.5Gb/s to x8 at 2.5Gb/s | G108: 0 | H108: 24157 | I108: 0 | J108: ='Input Parameter'!$B$28 -> 0 | K108: 24157 | L108: 0
A109: no | E109: ='Detailed Product Structure'!E106 -> N5310U-U21 | F109: ='Detailed Product Structure'!H106 -> Analyzer SW License Upgrade from x1 at 2.5Gb/s to x1 at 5Gb/s | G109: 0 | H109: 39841 | I109: 0 | J109: ='Input Parameter'!$B$28 -> 0 | K109: 39841 | L109: 0
A110: no | E110: ='Detailed Product Structure'!E107 -> N5310U-U24 | F110: ='Detailed Product Structure'!H107 -> Analyzer SW License Upgrade from x4 at 2.5Gb/s to x4 at 5Gb/s | G110: 0 | H110: 44119 | I110: 0 | J110: ='Input Parameter'!$B$28 -> 0 | K110: 44119 | L110: 0
A111: no | E111: ='Detailed Product Structure'!E108 -> N5310U-U26 | F111: ='Detailed Product Structure'!H108 -> Analyzer SW License Upgrade from x16 at 2.5Gb/s to x16 at 5Gb/s | G111: 0 | H111: 36019 | I111: 0 | J111: ='Input Parameter'!$B$28 -> 0 | K111: 36019 | L111: 0
A112: no | E112: ='Detailed Product Structure'!E109 -> N5310U-U28 | F112: ='Detailed Product Structure'!H109 -> Analyzer SW License Upgrade from x8 at 2.5Gb/s to x8 at 5Gb/s | G112: 0 | H112: 30588 | I112: 0 | J112: ='Input Parameter'!$B$28 -> 0 | K112: 30588 | L112: 0
A113: no | E113: ='Detailed Product Structure'!E110 -> N5310U-U46 | F113: ='Detailed Product Structure'!H110 -> Analyzer SW License Upgrade from x4 at 5Gb/s to x16 at 5Gb/s | G113: 0 | H113: 28648 | I113: 0 | J113: ='Input Parameter'!$B$28 -> 0 | K113: 28648 | L113: 0
A114: no | E114: ='Detailed Product Structure'!E111 -> N5310U-U48 | F114: ='Detailed Product Structure'!H111 -> Analyzer SW License Upgrade from x4 at 5Gb/s to x8 at 5Gb/s | G114: 0 | H114: 7465 | I114: 0 | J114: ='Input Parameter'!$B$28 -> 0 | K114: 7465 | L114: 0
A115: no | E115: ='Detailed Product Structure'!E112 -> N5310U-U86 | F115: ='Detailed Product Structure'!H112 -> Analyzer SW License Upgrade from x8 at 5Gb/s to x16 at 5Gb/s | G115: 0 | H115: 21197 | I115: 0 | J115: ='Input Parameter'!$B$28 -> 0 | K115: 21197 | L115: 0
A116: no | E116: ='Detailed Product Structure'!E113 -> N5310U-COM | F116: ='Detailed Product Structure'!H113 -> Exerciser SW License Compliance Package | G116: 0 | H116: 16059 | I116: 0 | J116: ='Input Parameter'!$B$28 -> 0 | K116: 16059 | L116: 0
A118: =IF(AND(Data!$G$1=Data!$G$6, A42="yes"),"yes","no") -> no | E118: ='Detailed Product Structure'!E117 -> N5313A | F118: ='Detailed Product Structure'!H117 -> P2L gateway cable to connect 16900A to E2960B Analyzer | G118: 0 | H118: 1429 | I118: 0 | J118: ='Input Parameter'!$B$28 -> 0 | K118: 1429 | L118: 0
A119: =IF(AND(Data!$G$1=Data!$G$5, A42="yes"),"yes","no") -> no | E119: ='Detailed Product Structure'!E135 -> N5319A | F119: ='Detailed Product Structure'!H135 -> P2L gateway cable with Flags support to connect 16900A to E2960B Analyzer | G119: 0 | H119: 1723 | I119: 0 | J119: ='Input Parameter'!$B$28 -> 0 | K119: 1723 | L119: 0
A121: =IF(AND($A$48="yes",OR(Data!$C$1=Data!$C$6, Data!$C$1=Data!$C$9)),"yes","no") -> no | D121: Interposer | E121: ='Detailed Product Structure'!E120 -> N5315A | F121: ='Detailed Product Structure'!H120 -> Slot Interposer for PCIe 5Gb/s | G121: 0 | H121: ='Detailed Product Structure'!J120 -> 0 | I121: 0 | J121: ='Input Parameter'!$B$28 -> 0 | K121: 0 | L121: 0
A122: =IF(AND($A$121="yes",Data!$D$1=Data!$D$5),"yes","no") -> no | E122: ='Detailed Product Structure'!E124 -> N5315A-A01 | F122: ='Detailed Product Structure'!H124 -> Slot Interposer x1 for PCIe 5Gb/s | G122: 0 | H122: 10137 | I122: 0 | J122: ='Input Parameter'!$B$28 -> 0 | K122: 10137 | L122: 0
A123: =IF(AND(A121="yes",Data!$D$1=Data!$D$6),"yes","no") -> no | E123: ='Detailed Product Structure'!E125 -> N5315A-A04 | F123: ='Detailed Product Structure'!H125 -> Slot Interposer x4 for PCIe 5Gb/s | G123: =IF(A123="yes",1,0) -> 0 | H123: 12364 | I123: 0 | J123: ='Input Parameter'!$B$28 -> 0 | K123: 12364 | L123: 0
A124: =IF(AND(A121="yes",Data!$D$1=Data!$D$7),"yes","no") -> no | E124: ='Detailed Product Structure'!E126 -> N5315A-A08 | F124: ='Detailed Product Structure'!H126 -> Slot Interposer x8 for PCIe 5Gb/s | G124: =IF(A124="yes",1,0) -> 0 | H124: 14613 | I124: 0 | J124: ='Input Parameter'!$B$28 -> 0 | K124: 14613 | L124: 0
A125: =IF(AND(A121="yes",Data!$D$1=Data!$D$8),"yes","no") -> no | E125: ='Detailed Product Structure'!E127 -> N5315A-A16 | F125: ='Detailed Product Structure'!H127 -> Slot Interposer x16 for PCIe 5Gb/s | G125: =IF(A125="yes",1,0) -> 0 | H125: 16861 | I125: 0 | J125: ='Input Parameter'!$B$28 -> 0 | K125: 16861 | L125: 0
A127: =IF(AND(OR(Data!$B$1=Data!$B$6,Data!$B$1=Data!$B$7), A42="yes"),"yes","no") -> no | E127: ='Detailed Product Structure'!E130 -> N5316A | F127: ='Detailed Product Structure'!H130 -> Test Backplane for PCIe Gen2 & Gen3 | G127: =IF(A127="yes",1,0) -> 0 | H127: 6194 | I127: 0 | J127: ='Input Parameter'!$B$28 -> 0 | K127: 6194 | L127: 0
A128: =A127 -> no | F128: Note: We recommend the backplane with every Exerciser.
A129: =IF(A133="yes","yes","no") -> no | E129: ='Detailed Product Structure'!E133 -> N5317A | F129: ='Detailed Product Structure'!H133 -> Cable to connect E2960A probe to E2960B series | G129: =IF(A129="yes",1,0) -> 0 | H129: 2708 | I129: 0 | J129: ='Input Parameter'!$B$28 -> 0 | K129: 2708 | L129: 0
A130: =A129 -> no | F130: Note: N5317A is required if using Gen1 only probes (see Gen1 only Products section of config.)
A131: yes
A132: =A133 -> No
A133: No | B133: =IF(A133="yes",B42+1,0) -> 0 | C133: Gen1 only Products
A134: no | E134: E2945A | F134: x1 passive probe board | G134: =IF(A134="yes",1,0) -> 0 | H134: 3070 | I134: 0 | J134: ='Input Parameter'!$B$28 -> 0 | K134: 3070 | L134: 0
A135: no | E135: E2946A | F135: x4 passive probe board | G135: 0 | H135: 3424 | I135: 0 | J135: ='Input Parameter'!$B$28 -> 0 | K135: =(1-J135)*H135 -> 3424 | L135: 0
A136: no | E136: E2947A | F136: x8 passive probe board | G136: 0 | H136: 3544 | I136: 0 | J136: ='Input Parameter'!$B$28 -> 0 | K136: 3544 | L136: 0
A137: no | F137: Note: We recommend the use of the Gen2 Slot Interposers (N5315A) instead of Gen 1 Interposers. Both are shown in this config, only one type is required.
A138: no | E138: E2941B | F138: Midbus Probe (required for N4221A, N4221F or N4228A) | G138: =IF(A138="yes",IF(OR(G139=2,G146=1),2,1),0) -> 0 | H138: 8678 | I138: 0 | J138: ='Input Parameter'!$B$28 -> 0 | K138: 8678 | L138: 0
A139: no | E139: N4221A | F139: Midbus Probe Cable (Full size soft touch) | G139: =IF(A139="yes",IF(OR(G140=2,G147=1),2,1),0) -> 0 | H139: 6522 | I139: 0 | J139: ='Input Parameter'!$B$28 -> 0 | K139: 6522 | L139: 0
A140: no | F140: Note: We strongly recommend the use of the Gen2 midbus probes
A141: no | F141: Note: You have configured an uni-directional footprint which is supported by the Gen1 midbus probe.
A142: no | E142: N4228A | F142: Midbus Probe Cable (1/2 size soft touch) | G142: =IF(A142="yes",1,0) -> 0 | H142: 6641 | I142: 0 | J142: ='Input Parameter'!$B$28 -> 0 | K142: =(1-J142)*H142 -> 6641 | L142: 0
A143: no | F143: Note: We strongly recommend the use of the Gen2 midbus probes
A144: no | E144: N4221F | F144: Flying Lead Probe 1.0 bi-directional x8 for PCIe 2.5Gb/s | G144: =IF(A144="yes",1,0) -> 0 | H144: 7506 | I144: 0 | J144: ='Input Parameter'!$B$28 -> 0 | K144: =(1-J144)*H144 -> 7506 | L144: 0
A145: no | F145: Note: We strongly recommend the Gen2 Flying Lead Probs (N4241F) instead
A146: no | E146: N4223A | F146: x16 interposer (2.5Gb/s x16 slot interposer includes 2 cables) | G146: =IF(A146="yes",1,0) -> 0 | H146: 10404 | I146: 0 | J146: ='Input Parameter'!$B$28 -> 0 | K146: =(1-J146)*H146 -> 10404 | L146: 0
A147: no | F147: Note: We strongly recommend the use of the N5315A-A16!
A149: yes | F149: Subtotal: | I149: =SUM(I44:I146) -> 0 | L149: =SUM(L4:L148) -> 352577.6
A150: no
A151: no
A152: yes
A153: yes | F153: Note: All Prices are US-List prices. Please check OPAL for local prices.
A154: yes | F154: Note: All information in here is subject to change. Please use Oracle to create all customer quotes.

Sheet Detailed Product Structure
E3: Owner (Product Mgr.) | H3: Yenyi Fu TN 345 8716 | O3: Date:
E4: CPL Date | J4: Update: | K4: 2007-12-21 | O4: CP passed:
E5: RMU: Sub-Family | H5: 256462 : SPT | J5: Status Pre-Production, PW protected | O5: next CP:
E6: Default Warranty | H6: 1 Year RTA | J6: ECR:
E7: Calibration Intervall | H7: 1 Year
A8: NOTES | B8: New / Change | C8: Min/ Max | D8: Level | E8: Product # | F8: Master Item type | G8: Org Item type | H8: Product Description max. 80 Character | I8: WW-Ref. Price (US$) Config=YES | J8: US List Price (*1,03 US$) Config=NO | K8: SRT/ATP weeks | L8: internal order (Y/N) | M8: required / Opt. (R/O) | N8: CPL Exclude (Y/N) | O8: Plg.-% | P8: Zoll Class. (Y/N) | Q8: Comments
E9: E29600 | F9: Merchandizing | G9: Merchandizing | H9: System Protocol Tester PCIe series
D10: 0 | E10: E2960B | F10: PTO | G10: PTO | H10: System Protocol Tester Series for PCIe 5Gb/s | I10: 0 | J10: =+I10*1.03 -> 0 | K10: 88 | N10: Y
D11: 1 | E11: E2960B-MEC | F11: PTO | G11: PTO | H11: Express Card Adapter for PCIe 2.5Gb/s for N4241A | I11: 0 | J11: 530 | K11: 88 | N11: Y
D12: 1 | E12: E2960B-LAN | F12: PTO | G12: PTO | H12: USB to LAN Adapter for Chassis to Controller Connectivity | J12: 52
D13: 1 | E13: E2960B-ATP001 | F13: ATPLT | G13: ATPLT | H13: ATP Lead-time item | I13: 0 | J13: =+I13*1.03 -> 0 | K13: 88 | N13: Y
D14: 1 | E14: E2960B-KIT | F14: PTO Kit Config Only | G14: PTO Kit Config Only | N14: Y
E15: PS-S20-01 | H15: 1 Day of start-up assistance | N15: Y
D16: 1 | E16: E2969B | F16: PTO Model | G16: PTO Model | H16: PTC 2.0 | I16: 0 | J16: 0 | K16: 88
D17: 2 | E17: N5309A-E01 | F17: PTO Kit config | G17: PTO Kit config | H17: Exerciser for PCIe 5Gb/s | I17: 0 | J17: 9158 | K17: 88 | N17: Y | Q17: rule: per optional rule add I/O cable N5312A
D18: 2 | E18: N5309A-PTC | F18: PTO Kit config | G18: PTO Kit config | H18: Exerciser for PCIe 5Gb/s | I18: 0 | J18: 0 | K18: 88 | N18: Y | Q18: rule: per optional rule add I/O cable N5312A
D19: 2 | E19: N5309A-COM | F19: PTO Kit config | G19: PTO Kit config | H19: Exerciser SW License Compliance Assured Test Package | I19: 0 | J19: 16027 | K19: 88 | N19: Y | Q19: rule: per optional rule add I/O cable N5312A
D20: 1 | E20: N5306A | F20: PTO Model | G20: PTO Model | H20: Analyzer Module for PCIe 5Gb/s (requires 2 for x 16) | I20: 26700 | J20: ='Recommended Config'!H48 -> 30300 | K20: 88
D21: 2 | E21: N5306A-KIT | F21: PTO Kit config | G21: PTO Kit config | H21: Analyzer Module Kit for PCIe 5Gb/s | I21: 0 | J21: 0 | K21: 88 | N21: Y | Q21: rule: per optional rule add I/O cable N5312A
D22: 2 | E22: N5306A-ATO | F22: ATO | G22: ATO | H22: Analyzer Board for PCIe 5Gb/s | I22: 0 | J22: 0 | K22: 88 | N22: Y | Q22: hint: 2 analyzers needed per License x16
D23: 3 | E23: N5306A-CORE | F23: Tangible | G23: Phantom | H23: Core of Analyzer Module for PCIe 5Gb/s | I23: 0 | J23: 0 | K23: 88 | N23: Y | Q23: hint: 2 analyzers needed per License x16
D24: 3 | E24: N5306A-OC-LINKWIDTH | F24: AOC | G24: AOC | H24: Option Class Analyzer SW License Link Width | I24: 0 | J24: 0 | K24: 88 | N24: Y
D25: 4 | E25: N5306A-A01 | F25: FG BOM Config Only | G25: Phantom | H25: Analyzer SW License x1 for PCIe 5Gb/s | J25: ='Recommended Config'!H49 -> 12995 | K25: 88 | N25: Y
D26: 4 | E26: N5306A-A04 | F26: FG BOM Config Only | G26: Phantom | H26: Analyzer SW License x4 for PCIe 5Gb/s | J26: ='Recommended Config'!H50 -> 19110 | K26: 88 | N26: Y
D27: 4 | E27: N5306A-A08 | F27: FG BOM Config Only | G27: Phantom | H27: Analyzer SW License x8 for PCIe 5Gb/s | J27: ='Recommended Config'!H51 -> 25443 | K27: 88 | N27: Y
D28: 4 | E28: N5306A-A16 | F28: FG BOM Config Only | G28: Phantom | H28: Analyzer SW License x16 for PCIe 5Gb/s | J28: ='Recommended Config'!H52 -> 21730 | K28: 88 | N28: Y | Q28: hint: includes additional analyzer board + trigger cable
D29: 4 | E29: N5306A-G01 | F29: FG BOM Config Only | G29: Phantom | H29: Analyzer SW License x1 for PCIe 2.5 Gb/s | J29: ='Recommended Config'!H53 -> -24886
D30: 4 | E30: N5306A-G04 | F30: FG BOM Config Only | G30: Phantom | H30: Analyzer SW License x4 for PCIe 2.5 Gb/s | J30: ='Recommended Config'!H54 -> -19416
D31: 4 | E31: N5306A-G08 | F31: FG BOM Config Only | G31: Phantom | H31: Analyzer SW License x8 for PCIe 2.5 Gb/s | J31: ='Recommended Config'!H55 -> 179 | K31: 88 | N31: Y
D32: 4 | E32: N5306A-G16 | F32: FG BOM Config Only | G32: Phantom | H32: Analyzer SW License x16 for PCIe 2.5Gb/s | J32: ='Recommended Config'!H56 -> -8639 | K32: 88 | N32: Y | Q32: hint: includes additional analyzer board + trigger cable
D33: 2 | E33: N5322A | H33: Extended Interface Module for PCIe 5Gb/s | J33: ='Recommended Config'!H57 -> 14856 | N33: Y
D34: 2 | E34: R1280A | H34: Service
D35: 1 | E35: N5309A | F35: PTO Model | G35: PTO Model | H35: Half Size Exerciser Module for PCIe 5Gb/s | J35: =+I35*1.03 -> 0 | K35: 88
D36: 2 | E36: N5309A-KIT | F36: PTO Kit config | G36: PTO Kit config | H36: Half Sized Exerciser Module Kit for PCIe 5Gb/s | I36: 0 | J36: =+I36*1.03 -> 0 | K36: 88 | N36: Y | Q36: includes license, USB-cable, Power Supply
D37: 2 | E37: E2960B-OC-PWRCRD | F37: POC | G37: POC | H37: Power Cord Option Class | I37: 0 | J37: 0 | K37: 88 | N37: Y | Q37: country selection for all modules - # is contributed from the modules to this Kit
D38: 3 | E38: E2991A-900 | F38: PKITCO | G38: PKITCO | H38: POWER CORD - UNITED KINGDOM | J38: 0 | K38: 88 | N38: Y
D39: 3 | E39: E2991A-901 | F39: PKITCO | G39: PKITCO | H39: POWER CORD - AUSTRALIA AND NEW ZEALAND | J39: 0 | K39: 88 | N39: Y
D40: 3 | E40: E2991A-902 | F40: PKITCO | G40: PKITCO | H40: POWER CORD - CONTINENTAL EUROPE | J40: 0 | K40: 88 | N40: Y
D41: 3 | E41: E2991A-903 | F41: PKITCO | G41: PKITCO | H41: POWER CORD - UNITED STATES AND CANADA (120V) | J41: 0 | K41: 88 | N41: Y
D42: 3 | E42: E2991A-906 | F42: PKITCO | G42: PKITCO | H42: POWER CORD - SWITZERLAND | J42: 0 | K42: 88 | N42: Y
D43: 3 | E43: E2991A-912 | F43: PKITCO | G43: PKITCO | H43: POWER CORD - DENMARK | J43: 0 | K43: 88 | N43: Y
D44: 3 | E44: E2991A-917 | F44: PKITCO | G44: PKITCO | H44: POWER CORD - SOUTH AFRICA AND INDIA | J44: 0 | K44: 88 | N44: Y
D45: 3 | E45: E2991A-918 | F45: PKITCO | G45: PKITCO | H45: POWER CORD - JAPAN | J45: 0 | K45: 88 | N45: Y
D46: 3 | E46: E2991A-919 | F46: PKITCO | G46: PKITCO | H46: POWER CORD - ISRAEL | J46: 0 | K46: 88 | N46: Y
D47: 3 | E47: E2991A-920 | F47: PKITCO | G47: PKITCO | H47: POWER CORD - ARGENTINA | J47: 0 | K47: 88 | N47: Y
D48: 3 | E48: E2991A-921 | F48: PKITCO | G48: PKITCO | H48: POWER CORD - CHILE | J48: 0 | K48: 88 | N48: Y
D49: 3 | E49: E2991A-922 | F49: PKITCO | G49: PKITCO | H49: POWER CORD - CHINA | J49: 0 | K49: 88 | N49: Y
D50: 3 | E50: E2991A-927 | F50: PKITCO | G50: PKITCO | H50: POWER CORD - BRAZIL AND THAILAND | J50: 0 | K50: 88 | N50: Y
D51: 2 | E51: N5309A-ATO | F51: ATO | G51: ATO | H51: Half Sized Exerciser Board for PCIe 5Gb/s | I51: 0 | J51: 0 | K51: 88 | N51: Y | Q51: hint: 2 analyzers needed per License x16
D52: 3 | E52: N5309A-CORE | F52: Tangible | G52: Phantom | H52: Core of Exerciser Module for PCIe 5Gb/s | I52: 0 | J52: 0 | K52: 88 | N52: Y | Q52: hint: 2 analyzers needed per License x16
D53: 3 | E53: N5309A-OC-LINKWIDTH | F53: AOC | G53: AOC | H53: Option Class Exerciser Module Link Width | I53: 0 | J53: 0 | K53: 88 | N53: Y
D54: 4 | E54: N5309A-E01 | F54: FG BOM Config Only | G54: Phantom | H54: Half Sized Exerciser and LTSSM Board x1 for PCIe 5Gb/s | J54: ='Recommended Config'!H63 -> 9359 | K54: 88 | N54: Y | Q54: add one Power Supply 5*5
D55: 4 | E55: N5309A-E04 | F55: FG BOM Config Only | G55: Phantom | H55: Half Sized Exerciser and LTSSM Board x4 for PCIe 5Gb/s | J55: ='Recommended Config'!H64 -> 21226 | K55: 88 | N55: Y | Q55: add one Power Supply 5*5
D56: 4 | E56: N5309A-E08 | F56: FG BOM Config Only | G56: Phantom | H56: Half Sized Exerciser and LTSSM Board x8 for PCIe 5Gb/s | J56: ='Recommended Config'!H65 -> 32260 | K56: 88 | N56: Y | Q56: add one Power Supply 5*5
D57: 4 | E57: N5309A-E16 | F57: FG BOM Config Only | G57: Phantom | H57: Half Sized Exerciser and LTSSM Board x16 for PCIe 5Gb/s | J57: ='Recommended Config'!H66 -> 43491 | K57: 88 | N57: Y | Q57: add two Power Supply 5*5
D58: 3 | E58: N5309A-OC-EXSW | F58: AOC | G58: AOC | H58: Option Class Exerciser SW | J58: 0 | K58: 88 | N58: Y | Q58: add two Power Supply 5*5
D59: 4 | E59: N5309A-EX1 | F59: FG BOM Config Only | G59: Phantom | H59: Exerciser SW License and LTSSM for PCIe 2.5Gb/s | J59: ='Recommended Config'!H67 -> 28129 | K59: 88 | N59: Y | Q59: add one Power Supply 5*5
D60: 4 | E60: N5309A-EX2 | F60: FG BOM Config Only | G60: Phantom | H60: Exerciser SW License and LTSSM for PCIe 5Gb/s | J60: ='Recommended Config'!H68 -> 49054 | K60: 88 | N60: Y | Q60: add one Power Supply 5*5
D61: 3 | E61: N5309A-OC-PTC | F61: AOC | G61: AOC | H61: Option Class SW Compliance | J61: 0 | K61: 88 | N61: Y | Q61: add two Power Supply 5*5
D62: 4 | E62: N5309A-PTC | F62: FG BOM Config Only | G62: Phantom | H62: Exerciser SW License PTC | I62: 0 | J62: 0 | K62: 88 | N62: Y | Q62: add one Power Supply 5*5
D63: 4 | E63: N5309A-COM | F63: FG BOM Config Only | G63: Phantom | H63: Exerciser SW License Compliance Assured Test Package | J63: ='Recommended Config'!H70 -> 16059 | K63: 88 | N63: Y | Q63: add one Power Supply 5*5
D64: 2 | E64: R1280A | H64: Service | K64: 88 | N64: Y
D65: 1 | E65: N4241A | F65: PTO Model | G65: PTO Model | H65: Midbus Probe 2.0 bi-directional x8 for PCIe 5Gb/s | J65: ='Recommended Config'!H83 -> 22268 | K65: 88 | N65: Y | Q65: set up and designed by PL 1B
D66: 2 | E66: N4241A-FG | H66: Midbus Probe 2.0 bi-directional x8 for PCIe 5Gb/s | I66: 0 | J66: 0 | K66: 88 | N66: Y | Q66: hint: 2 analyzers needed per License x16
D67: 2 | E67: N4241A-KIT | H67: Midbus Probe 2.0 Kit bi-directional x8 for PCIe 5Gb/s | I67: 0 | J67: 0 | K67: 88 | N67: Y | Q67: hint: 2 analyzers needed per License x16
D68: 1 | E68: N4241A-MBI | H68: Set of Midbus Interposer x1, x4, x8, x16 for straight midbus | I68: 0 | J68: ='Recommended Config'!H85 -> 1919 | K68: 88 | N68: Y | Q68: hint: 2 analyzers needed per License x16
D69: 2 | E69: R1280A | H69: Return-to-Agilent - warranty and service plan | K69: 88 | N69: Y
D70: 1 | E70: N5328A | F70: PTO Model | G70: PTO Model | H70: Midbus Probe 2.0 bi-directional x4 for PCIe 5Gb/s | J70: ='Recommended Config'!H87 -> 24902 | K70: 88 | N70: Y | Q70: set up and designed by PL 1B
D71: 2 | E71: N5328A-FG | H71: Midbus Probe 2.0 bi-directional x4 for PCIe 5Gb/s | I71: 0 | J71: =+I71*1.03 -> 0 | K71: 88 | N71: Y | Q71: hint: 2 analyzers needed per License x16
D72: 2 | E72: N5328A-KIT | H72: Midbus Probe 2.0 Kit bi-directional x4 for PCIe 5Gb/s | I72: 0 | J72: 0 | K72: 88 | N72: Y | Q72: hint: 2 analyzers needed per License x16
D73: 2 | E73: R1280A | H73: Return-to-Agilent - warranty and service plan | K73: 88 | N73: Y
D74: 1 | E74: N4241F | F74: PTO Model | G74: PTO Model | H74: Flying Lead Probe 2.0 bi-directional x8 for PCIe 5Gb/s | J74: 25725 | K74: 88 | N74: Y | Q74: set up and designed by PL 1B
D75: 2 | E75: N4241F-FG | H75: Flying Lead Probe 2.0 bi-directional x8 for PCIe 5Gb/s | I75: 0 | J75: 0 | K75: 88 | N75: Y | Q75: hint: 2 analyzers needed per License x16
D76: 2 | E76: N4241F-KIT | H76: Flying Lead Probe 2.0 Kit bi-directional x8 for PCIe 5Gb/s | I76: 0 | J76: 0 | K76: 88 | N76: Y | Q76: hint: 2 analyzers needed per License x16
D77: 2 | E77: R1280A | H77: Return-to-Agilent - warranty and service plan | K77: 88 | N77: Y
D78: 1 | E78: N4241Z | F78: PTO Model | G78: PTO Model | H78: ZIF Flying Lead Probe 2.0 bi-directional x8 for PCIe 5Gb/s | J78: 25725 | K78: 88 | N78: Y | Q78: set up and designed by PL 1B
D79: 2 | E79: N4241Z-FG | H79: ZIF Flying Lead Probe 2.0 bi-directional x8 for PCIe 5Gb/s | I79: 0 | J79: =+I79*1.03 -> 0 | K79: 88 | N79: Y | Q79: hint: 2 analyzers needed per License x16
D80: 2 | E80: N4241Z-OC-ZIFTIP | H80: Option Class Exerciser Module Link Width | I80: 0 | J80: 0 | K80: 88 | N80: Y
D81: 3 | E81: N5426A | H81: 12GHz InfiniiMax ZIF Tip â€“ Kit of 10 | J81: ='Recommended Config'!H92 -> 0 | K81: 88 | N81: Y | Q81: add one Power Supply 5*5
D82: 3 | E82: N5451A | H82: 4GHz InfiniiMax Long Wired Differential ZIF Tip | K82: 88 | N82: Y | Q82: add one Power Supply 5*5
D83: 2 | E83: R1280A | H83: Return-to-Agilent - warranty and service plan | K83: 88 | N83: Y
D84: 1 | E84: N4242A | F84: PTO Model | G84: PTO Model | H84: Midbus Probe 2.0 swizzled x16 for PCIe 5Gb/s | J84: ='Recommended Config'!H94 -> 45820 | K84: 88 | N84: Y | Q84: set up and designed by PL 1B
D85: 2 | E85: N4242A-FG | H85: Midbus Probe 2.0 swizzled x16 for PCIe 5Gb/s | I85: 0 | J85: =+I85*1.03 -> 0 | K85: 88 | N85: Y | Q85: hint: 2 analyzers needed per License x16
D86: 2 | E86: N4242A-KIT | H86: Midbus Probe 2.0 Kit swizzled x16 for PCIe 5Gb/s | I86: 0 | J86: =+I86*1.03 -> 0 | K86: 88 | N86: Y | Q86: hint: 2 analyzers needed per License x16
D87: 2 | E87: R1280A | H87: Return-to-Agilent - warranty and service plan | K87: 88 | N87: Y
D88: 1 | E88: N4243A | F88: PTO Model | G88: PTO Model | H88: Midbus Probe 2.0 split x4 for PCIe 5Gb/s | J88: ='Recommended Config'!H95 -> 24623 | K88: 88 | N88: Y | Q88: set up and designed by PL 1B
D89: 2 | E89: N4243A-FG | H89: Midbus Probe 2.0 split x4 for PCIe 5Gb/s | I89: 0 | J89: =+I89*1.03 -> 0 | K89: 88 | N89: Y | Q89: hint: 2 analyzers needed per License x16
D90: 2 | E90: N4243A-KIT | H90: Midbus Probe 2.0 Kit split x4 for PCIe 5Gb/s | I90: 0 | J90: =+I90*1.03 -> 0 | K90: 88 | N90: Y | Q90: hint: 2 analyzers needed per License x16
D91: 2 | E91: R1280A | H91: Return-to-Agilent - warranty and service plan | K91: 88 | N91: Y
D92: 1 | E92: R1380-PCIXPRESSEBC | H92: Services for PCIe 5Gb/s | K92: 88
D93: 1 | E93: N5310U | F93: PTO Model | G93: PTO Model | H93: Upgrade of Analyzer SW License for E2960B | K93: 88
D94: 2 | E94: N5310U-E12 | F94: PTO Kit config | G94: PTO Kit config | H94: Exerciser SW License Upgrade for Exerciser and LTSSM from 2.5Gb/s to 5Gb/s | J94: ='Recommended Config'!H99 -> 25694 | K94: 88
D95: 2 | E95: N5310U-EX1 | F95: PTO Kit config | G95: PTO Kit config | H95: Exerciser SW License and LTSSM at 5Gb/s | J95: ='Recommended Config'!H100 -> 27577 | K95: 88 | N95: Y
D96: 2 | E96: N5310U-EX2 | F96: PTO Kit config | G96: PTO Kit config | H96: Exerciser SW License and LTSSM at 2.5Gb/s | J96: ='Recommended Config'!H101 -> 48569 | K96: 88 | N96: Y
D97: 2 | E97: N5310U-G14 | F97: PTO Kit config | G97: PTO Kit config | H97: Analyzer SW License Upgrade from x1 at 2.5Gb/s to x4 at 2.5Gb/s | J97: ='Recommended Config'!H106 -> 4378 | K97: 88 | N97: Y
D98: 2 | E98: N5310U-G18 | F98: PTO Kit config | G98: PTO Kit config | H98: Analyzer SW License Upgrade from x1 at 2.5Gb/s to x8 at 2.5Gb/s | J98: ='Recommended Config'!H107 -> 29400 | K98: 88
B99: New | D99: 2 | E99: N5310U-G16 | F99: PTO Kit config | G99: PTO Kit config | H99: Analyzer SW License Upgrade from x1 at 2.5Gb/s to x16 at 2.5Gb/s | J99: 18700
D100: 2 | E100: N5310U-G48 | F100: PTO Kit config | G100: PTO Kit config | H100: Analyzer SW License Upgrade from x4 at 2.5Gb/s to x8 at 2.5Gb/s | J100: ='Recommended Config'!H108 -> 24157 | K100: 88 | N100: Y
B101: New | D101: 2 | E101: N5310U-G46 | F101: PTO Kit config | G101: PTO Kit config | H101: Analyzer SW License Upgrade from x4 at 2.5Gb/s to x16 at 2.5Gb/s | J101: 12500
D102: 2 | E102: N5310U-J12 | F102: PTO Kit config | G102: PTO Kit config | H102: Jammer SW License Upgrade from 2.5Gb/s to 5Gb/s | J102: ='Recommended Config'!H102 -> 28400 | K102: 88
D103: 2 | E103: N5310U-JM1 | F103: PTO Kit config | G103: PTO Kit config | H103: Jammer SW License at 2.5Gb/s | J103: ='Recommended Config'!H103 -> 17000 | K103: 88 | N103: Y
D104: 2 | E104: N5310U-JM2 | F104: PTO Kit config | G104: PTO Kit config | H104: Jammer SW License at 5Gb/s | J104: ='Recommended Config'!H104 -> 40000 | K104: 88 | N104: Y
D105: 2 | E105: N5310U-SCR | F105: PTO Kit config | G105: PTO Kit config | H105: Jammer SW Licnese : Jammer Scripts | J105: ='Recommended Config'!H105 -> 10310
D106: 2 | E106: N5310U-U21 | F106: PTO Kit config | G106: PTO Kit config | H106: Analyzer SW License Upgrade from x1 at 2.5Gb/s to x1 at 5Gb/s | J106: ='Recommended Config'!H109 -> 39841 | K106: 88 | N106: Y
D107: 2 | E107: N5310U-U24 | F107: PTO Kit config | G107: PTO Kit config | H107: Analyzer SW License Upgrade from x4 at 2.5Gb/s to x4 at 5Gb/s | J107: ='Recommended Config'!H110 -> 44119 | K107: 88 | N107: Y
D108: 2 | E108: N5310U-U26 | F108: PTO Kit config | G108: PTO Kit config | H108: Analyzer SW License Upgrade from x16 at 2.5Gb/s to x16 at 5Gb/s | J108: ='Recommended Config'!H111 -> 36019 | K108: 88 | N108: Y
D109: 2 | E109: N5310U-U28 | F109: PTO Kit config | G109: PTO Kit config | H109: Analyzer SW License Upgrade from x8 at 2.5Gb/s to x8 at 5Gb/s | J109: ='Recommended Config'!H112 -> 30588 | K109: 88 | N109: Y
D110: 2 | E110: N5310U-U46 | F110: PTO Kit config | G110: PTO Kit config | H110: Analyzer SW License Upgrade from x4 at 5Gb/s to x16 at 5Gb/s | J110: ='Recommended Config'!H113 -> 28648 | K110: 88 | N110: Y
D111: 2 | E111: N5310U-U48 | F111: PTO Kit config | G111: PTO Kit config | H111: Analyzer SW License Upgrade from x4 at 5Gb/s to x8 at 5Gb/s | J111: ='Recommended Config'!H114 -> 7465 | K111: 88 | N111: Y
D112: 2 | E112: N5310U-U86 | F112: PTO Kit config | G112: PTO Kit config | H112: Analyzer SW License Upgrade from x8 at 5Gb/s to x16 at 5Gb/s | J112: ='Recommended Config'!H115 -> 21197 | K112: 88 | N112: Y
D113: 2 | E113: N5310U-COM | F113: PTO Kit config | G113: PTO Kit config | H113: Exerciser SW License Compliance Package | J113: ='Recommended Config'!H116 -> 16059
D114: 1 | E114: N5312A | F114: PTO Model | G114: PTO Model | H114: I/O Cable for N5306A module | K114: 88 | N114: Y
D115: 2 | E115: N5312A-KIT | F115: PTO Kit Config Only | G115: PTO Kit Config Only | H115: I/O Cable to connect N5307A to Analyzer Module. Never released. | K115: 88 | N115: Y
D116: 2 | E116: R1280A | H116: Service | I116: 0 | J116: =(I116*1.03) -> 0 | K116: 88 | N116: Y
D117: 1 | E117: N5313A | F117: PTO Model | G117: PTO Model | H117: P2L gateway cable to connect 16900A to E2960B Analyzer | J117: 969 | K117: 88 | N117: Y
D118: 2 | E118: N5313A-KIT | F118: PTO Kit Config Only | G118: PTO Kit Config Only | H118: P2L gateway cable to connect 16900A to E2960B Analyzer | K118: 88 | N118: Y
D119: 2 | E119: R1280A | H119: Service | I119: 0 | J119: =(I119*1.03) -> 0 | K119: 88 | N119: Y
D120: 1 | E120: N5315A | F120: PTO Model | G120: PTO Model | H120: Slot Interposer for PCIe 5Gb/s | J120: =(I120*1.03) -> 0 | K120: 88 | N120: Y
D121: 2 | E121: N5315A-ATO | F121: ATO | G121: ATO | H121: Slot Interposer for PCIe 5Gb/s | J121: =+I121*1.03 -> 0 | K121: 88 | N121: Y | Q121: hint: 2 analyzers needed per License x16
D122: 3 | E122: N5315A-CORE | F122: Tangible | G122: Phantom | H122: Core of Slot Interposer for PCIe 5Gb/s | J122: =+I122*1.03 -> 0 | K122: 88 | N122: Y | Q122: hint: 2 analyzers needed per License x16
D123: 3 | E123: N5315A-OC-LINKWIDTH | F123: AOC | G123: AOC | H123: Option Class Slot InterposerLink Width | J123: =+I123*1.03 -> 0 | K123: 88 | N123: Y
D124: 4 | E124: N5315A-A01 | F124: FG BOM Config Only | G124: Phantom | H124: Slot Interposer x1 for PCIe 5Gb/s | J124: ='Recommended Config'!H122 -> 10137 | K124: 88 | N124: Y | Q124: add one Power Supply 5*5
D125: 4 | E125: N5315A-A04 | F125: FG BOM Config Only | G125: Phantom | H125: Slot Interposer x4 for PCIe 5Gb/s | J125: ='Recommended Config'!H123 -> 12364 | K125: 88 | N125: Y | Q125: add one Power Supply 5*5
D126: 4 | E126: N5315A-A08 | F126: FG BOM Config Only | G126: Phantom | H126: Slot Interposer x8 for PCIe 5Gb/s | J126: ='Recommended Config'!H124 -> 14613 | K126: 88 | N126: Y | Q126: add one Power Supply 5*5
D127: 4 | E127: N5315A-A16 | F127: FG BOM Config Only | G127: Phantom | H127: Slot Interposer x16 for PCIe 5Gb/s | J127: ='Recommended Config'!H125 -> 16861 | K127: 88 | N127: Y | Q127: add two Power Supply 5*5
D128: 2 | E128: N5315A-KIT | F128: PTO Kit Config Only | G128: PTO Kit Config Only | H128: Slot Interposer Kit for PCIe 5Gb/s | K128: 88 | N128: Y
D129: 2 | E129: R1280A | H129: Service | I129: 0 | J129: =(I129*1.03) -> 0 | K129: 88 | N129: Y
D130: 1 | E130: N5316A | F130: PTO Model | G130: PTO Model | H130: Test Backplane for PCIe Gen2 & Gen3 | J130: ='Recommended Config'!H127 -> 6194
D131: 2 | E131: N5316A-FG | F131: PTO Kit Config Only | G131: PTO Kit Config Only | H131: Test Backplane for PCIe 5Gb/s | K131: 88 | N131: Y
D132: 2 | E132: N5316A-KIT | F132: PTO Kit Config Only | G132: PTO Kit Config Only | H132: Test Backplane for PCIe 5Gb/s | K132: 88 | N132: Y
D133: 1 | E133: N5317A | F133: PTO Model | G133: PTO Model | H133: Cable to connect E2960A probe to E2960B series | J133: ='Recommended Config'!H129 -> 2708
D134: 2 | E134: N5317A-KIT | F134: PTO Kit Config Only | G134: PTO Kit Config Only | H134: Cable to connect E2960A probe to E2960B series | K134: 88 | N134: Y
D135: 1 | E135: N5319A | F135: PTO Model | G135: PTO Model | H135: P2L gateway cable with Flags support to connect 16900A to E2960B Analyzer | J135: 1495 | K135: 88 | N135: Y
D136: 2 | E136: N5319A-KIT | F136: PTO Kit Config Only | G136: PTO Kit Config Only | H136: P2L gateway cable with Flags support to connect 16900A to E2960B Analyzer | K136: 88 | N136: Y
D137: 2 | E137: R1280A | H137: Service | I137: 0 | J137: =(I137*1.03) -> 0 | K137: 88 | N137: Y
D138: 1 | E138: N5322A | F138: PTO Model | G138: PTO Model | H138: Extended Interface Module for PCIe 5Gb/s | J138: =J33 -> 14856 | K138: 88 | N138: Y
D139: 2 | E139: N5322A-FG | F139: PTO Kit Config Only | G139: PTO Kit Config Only | H139: Extended Interface Module for PCIe 5Gb/s | K139: 88 | N139: Y
D140: 2 | E140: N5322A-KIT | H140: Extended Interface Module for PCIe 5Gb/s Kit
D141: 2 | E141: R1280A | H141: Service | I141: 0 | J141: =(I141*1.03) -> 0 | K141: 88 | N141: Y
D142: 1 | E142: N5323A | F142: PTO Model | G142: PTO Model | H142: Jammer Module for PCIe 5Gb/s | J142: =+I142*1.03 -> 0 | K142: 88
D143: 2 | E143: N5323A-KIT | F143: PTO Kit config | G143: PTO Kit config | H143: Jammer Module Kit for PCIe 5Gb/s | I143: 0 | J143: =+I143*1.03 -> 0 | K143: 88 | N143: Y | Q143: includes license, USB-cable, Power Supply
D144: 2 | E144: E2960B-OC-PWRCRD | F144: POC | G144: POC | H144: Power Cord Option Class | I144: 0 | J144: 0 | K144: 88 | N144: Y | Q144: country selection for all modules - # is contributed from the modules to this Kit
D145: 3 | E145: E2991A-900 | F145: PKITCO | G145: PKITCO | H145: POWER CORD - UNITED KINGDOM | J145: 0 | K145: 88 | N145: Y
D146: 3 | E146: E2991A-901 | F146: PKITCO | G146: PKITCO | H146: POWER CORD - AUSTRALIA AND NEW ZEALAND | J146: 0 | K146: 88 | N146: Y
D147: 3 | E147: E2991A-902 | F147: PKITCO | G147: PKITCO | H147: POWER CORD - CONTINENTAL EUROPE | J147: 0 | K147: 88 | N147: Y
D148: 3 | E148: E2991A-903 | F148: PKITCO | G148: PKITCO | H148: POWER CORD - UNITED STATES AND CANADA (120V) | J148: 0 | K148: 88 | N148: Y
D149: 3 | E149: E2991A-906 | F149: PKITCO | G149: PKITCO | H149: POWER CORD - SWITZERLAND | J149: 0 | K149: 88 | N149: Y
D150: 3 | E150: E2991A-912 | F150: PKITCO | G150: PKITCO | H150: POWER CORD - DENMARK | J150: 0 | K150: 88 | N150: Y
D151: 3 | E151: E2991A-917 | F151: PKITCO | G151: PKITCO | H151: POWER CORD - SOUTH AFRICA AND INDIA | J151: 0 | K151: 88 | N151: Y
D152: 3 | E152: E2991A-918 | F152: PKITCO | G152: PKITCO | H152: POWER CORD - JAPAN | J152: 0 | K152: 88 | N152: Y
D153: 3 | E153: E2991A-919 | F153: PKITCO | G153: PKITCO | H153: POWER CORD - ISRAEL | J153: 0 | K153: 88 | N153: Y
D154: 3 | E154: E2991A-920 | F154: PKITCO | G154: PKITCO | H154: POWER CORD - ARGENTINA | J154: 0 | K154: 88 | N154: Y
D155: 3 | E155: E2991A-921 | F155: PKITCO | G155: PKITCO | H155: POWER CORD - CHILE | J155: 0 | K155: 88 | N155: Y
D156: 3 | E156: E2991A-922 | F156: PKITCO | G156: PKITCO | H156: POWER CORD - CHINA | J156: 0 | K156: 88 | N156: Y
D157: 3 | E157: E2991A-927 | F157: PKITCO | G157: PKITCO | H157: POWER CORD - BRAZIL AND THAILAND | J157: 0 | K157: 88 | N157: Y
D158: 2 | E158: N5323A-ATO | F158: ATO | G158: ATO | H158: Jammer Board for PCIe 5Gb/s | I158: 0 | J158: 0 | K158: 88 | N158: Y | Q158: hint: 2 analyzers needed per License x16
D159: 3 | E159: N5323A-CORE | F159: Tangible | G159: Phantom | H159: Core of Exerciser Module for PCIe 5Gb/s | I159: 0 | J159: 0 | K159: 88 | N159: Y | Q159: hint: 2 analyzers needed per License x16
D160: 3 | E160: N5323A-OC-LINKWIDTH | F160: AOC | G160: AOC | H160: Option Class Jammer Module Link Width | I160: 0 | J160: 0 | K160: 88 | N160: Y
D161: 4 | E161: N5323A-J01 | F161: FG BOM Config Only | G161: Phantom | H161: Jammer Module x1 for PCIe 5Gb/s | J161: ='Recommended Config'!H74 -> 9442 | K161: 88 | N161: Y | Q161: add one Power Supply 5*5
D162: 4 | E162: N5323A-J04 | F162: FG BOM Config Only | G162: Phantom | H162: Jammer Module x4 for PCIe 5Gb/s | J162: ='Recommended Config'!H75 -> 28812 | K162: 88 | N162: Y | Q162: add one Power Supply 5*5
D163: 4 | E163: N5323A-J08 | F163: FG BOM Config Only | G163: Phantom | H163: Jammer Module x8 for PCIe 5Gb/s | J163: ='Recommended Config'!H76 -> 39102 | K163: 88 | N163: Y | Q163: add one Power Supply 5*5
D164: 3 | E164: N5323A-OC-EXSW | F164: AOC | G164: AOC | H164: Option Class SW | J164: =+I164*1.03 -> 0 | K164: 88 | N164: Y | Q164: add two Power Supply 5*5
D165: 4 | E165: N5323A-JM1 | F165: FG BOM Config Only | G165: Phantom | H165: Gen2 Ready Jammer SW License : Jammer at 2.5Gb/s | J165: ='Recommended Config'!H78 -> 17493 | K165: 88 | N165: Y | Q165: add one Power Supply 5*5
D166: 4 | E166: N5323A-JM2 | F166: FG BOM Config Only | G166: Phantom | H166: Jammer SW License : Jammer at 5 Gb/s | J166: ='Recommended Config'!H79 -> 41160 | K166: 88 | N166: Y | Q166: add one Power Supply 5*5
D167: 4 | E167: N5323A-SCR | F167: FG BOM Config Only | G167: Phantom | H167: Jammer SW License : Jammer Scripts | J167: ='Recommended Config'!H80 -> 10310 | K167: 88 | N167: Y | Q167: add one Power Supply 5*5
D168: 2 | E168: R1280A | H168: Service | K168: 88 | N168: Y
D169: 1 | E169: N5302A | F169: PTO | G169: PTO | H169: 2-slot portable chassis | I169: 3402 | J169: 5118 | Q169: purchased as it is from DND
D170: 2 | E170: N5302A-050 | F170: PTO Kit Config Only | G170: PTO Kit Config Only | H170: Chassis to chassis cable for 2 or 4 slot chassis | J170: 127 | K170: 88 | N170: Y
D171: 1 | E171: N5302A | F171: PTO | G171: PTO | H171: 4-slot chassis | I171: 4298 | J171: 5478 | Q171: purchased as it is from DND
D172: 2 | E172: N5304A-050 | F172: PTO Kit Config Only | G172: PTO Kit Config Only | H172: Chassis to chassis cable for 2 or 4 slot chassis | J172: 127 | K172: 88 | N172: Y
A173: Gen3 Products | K173: 88 | N173: Y
A174: Feb, 2010 | B174: Change | D174: 0 | E174: U4002A | F174: PTO | G174: PTO | H174: Digital Test Console Chassis two slot chassis | J174: 7500 | Q174: Notice name change.
A175: Feb, 2010 | D175: 1 | E175: U4002A-OC-ACCS | F175: POC | G175: POC | H175: Accessories
A176: Feb, 2010 | D176: 2 | E176: U4002A-SFT | F176: PKIT | G176: PKIT | H176: Soft carrying bag for Digital test console two slot chassis | I176: 150 | J176: 156
A177: Feb, 2010 | D177: 2 | E177: U4002A-PCH | F177: PKIT | G177: PKIT | H177: Accessories pouch kit for Digital test console two slot chassis | J177: 156
A178: Feb, 2010 | D178: 1 | E178: U4002A-OC-CABLES | F178: POC | G178: POC | H178: PCIe Cables
A179: Feb, 2010 | D179: 2 | E179: U4002A-050 | F179: PKIT | G179: PKIT | H179: Chassis to chassis cable for Digital test console(50cm) | I179: 150
A180: Feb, 2010 | D180: 2 | E180: U4002A-300 | F180: PKIT | G180: PKIT | H180: Chassis to chassis cable for Digital test console(3M) | I180: 150
A181: Feb, 2010 | D181: 2 | E181: U4002A-2MC | F181: PKITCO | G181: PKITCO | H181: PCIe cable (2.0m) | I181: 225 | J181: 250
A182: Feb, 2010 | D182: 2 | E182: U4002A-5MC | F182: PKITCO | G182: PKITCO | H182: PCIe cable (5.0m) | I182: 400 | J182: 450
A183: Feb, 2010 | D183: 1 | E183: U4002A-OC-PCADAPTER | F183: POC | G183: POC | H183: Host PC adapter cards
A184: Feb, 2010 | D184: 2 | E184: U4002A-EXP | F184: PKITCO | G184: PKITCO | H184: PCI Express cable to express card adapter for laptop connections | J184: 450
A185: Feb, 2010 | D185: 2 | E185: U4002A-SLT | F185: PKITCO | G185: PKITCO | H185: PCI Express cable to slot adapter for desktop connections | J185: 450
A186: Feb, 2010 | D186: 1 | E186: R1380-BI | F186: POC | G186: POC | H186: Services
A187: Feb, 2010 | D187: 1 | E187: R1280A | F187: SPCO | G187: SPCO | H187: Return to Agilent warranty and service plan
A188: Feb, 2010 | D188: 1 | E188: U4002A-KIT | F188: PKITCO | G188: PKITCO | H188: Kit-shipping
A189: Feb, 2010 | D189: 1 | E189: U4002A-SPS | F189: SPCO | G189: SPCO
A190: On Hold | E190: U40xxA | H190: Controller PC with software installed
N191: Y
D192: 0 | E192: U4300A | F192: PTO | G192: PTO | H192: PCI Express Series
A193: to house all service parts for series | E193: U4300A-REP | H193: PCIe Gen 3 Series Service Parts | N193: Y
A194: March, 2010 | D194: 0 | E194: U4301A | F194: PTO Model | G194: PTO Model | H194: Analyzer module for PCIe 8Gbps | I194: 0 | K194: 88
A195: March, 2010 | D195: 1 | E195: U4301A-KIT | F195: PTO Kit config | G195: PTO Kit config | H195: Kit-shipping | I195: 0 | K195: 88 | N195: Y
A196: March, 2010 | D196: 1 | E196: U4301A-ATO | F196: ATO | G196: ATO | H196: Analyzer module for PCIe 8Gbps | I196: 0 | K196: 88 | N196: Y
A197: March, 2010 | D197: 2 | E197: U4301A-CORE | F197: Tangible | G197: Phantom | H197: Core materials | I197: 0 | K197: 88 | N197: Y
A198: March, 2010 | D198: 2 | E198: U4301A-OC-LINKWIDTH | F198: AOC | G198: AOC | H198: Analyzer linkwidth options | I198: 0 | K198: 88 | N198: Y
A199: March, 2010 | D199: 3 | E199: U4301A-A01 | F199: FG BOM Config Only | G199: Phantom | H199: Analyzer linkwidth x1 | I199: 26750 | J199: =I199*1.032 -> 27606 | K199: 88 | N199: Y
A200: March, 2010 | D200: 3 | E200: U4301A-A04 | F200: FG BOM Config Only | G200: Phantom | H200: Analyzer linkwidth x4 | I200: 33000 | J200: =I200*1.032 -> 34056 | K200: 88 | N200: Y
A201: March, 2010 | D201: 3 | E201: U4301A-A08 | F201: FG BOM Config Only | G201: Phantom | H201: Analyzer linkwidth x8 | I201: 40650 | J201: 41950.8 | K201: 88 | N201: Y
A202: March, 2010 | D202: 3 | E202: U4301A-A16 | F202: FG BOM Config Only | G202: Phantom | H202: Analyzer linkwidth x16 | I202: 37000 | J202: 38184 | Q202: 2/17/09 To get bidirectional capability, customer must order qty. 2 each of the U4301A and qty. 2 each of A16 with jumper cable
... 129 more rows

Sheet Gen2 Ready Program (hidden)
A1: The Gen2 Ready Program gives our customer the ability to purchase hardware that is capable of going to Gen2 (5.0 Gb/s), but licensed at Gen1, and at a Gen1 price.
A2: This gives the customer an flexible upgrade path to Gen2 speeds at a later date.
A3: For more information on Gen2Ready program, look at publication : 5990-3159EN.pdf
A6: Analyzer
A8: Link
B9: Gen1 Only | E9: Gen2 Ready Configuration | H9: Upgrade to Gen2 | I9: Gen2 Configuration | L9: Gen2 Ready Configuration - with Gen1 Probes
A10: x1 | D10: =SUM(D11:D14) -> 16598 | G10: =SUM(G11:G14) -> 20669 | H10: 42117 | K10: =SUM(K11:K14) -> 58550 | N10: =SUM(N11:N15) -> 15994
B11: E2960A-A01 | C11: Protocol Analyzer for PCI Express x1 | D11: 16598 | E11: N5306A | F11: =VLOOKUP(E11,'Detailed Product Structure'!$E$10:$J$171,4,FALSE) -> Analyzer Module for PCIe 5Gb/s (requires 2 for x 16) | G11: =VLOOKUP(E11,'Detailed Product Structure'!$E$10:$J$171,6,FALSE) -> 30300 | H11: N5310U-U21 | I11: N5306A | J11: =VLOOKUP(I11,'Detailed Product Structure'!$E$10:$J$171,4,FALSE) -> Analyzer Module for PCIe 5Gb/s (requires 2 for x 16) | K11: =VLOOKUP(I11,'Detailed Product Structure'!$E$10:$J$171,6,FALSE) -> 30300 | L11: N5306A | M11: =VLOOKUP(L11,'Detailed Product Structure'!$E$10:$J$171,4,FALSE) -> Analyzer Module for PCIe 5Gb/s (requires 2 for x 16) | N11: =VLOOKUP(L11,'Detailed Product Structure'!$E$10:$J$171,6,FALSE) -> 30300
E12: N5306A-G01 | F12: =VLOOKUP(E12,'Detailed Product Structure'!$E$10:$J$171,4,FALSE) -> Analyzer SW License x1 for PCIe 2.5 Gb/s | G12: =VLOOKUP(E12,'Detailed Product Structure'!$E$10:$J$171,6,FALSE) -> -24886 | H12: =(G10+H10)/K10-1 -> 0.07234842015 | I12: N5306A-A01 | J12: =VLOOKUP(I12,'Detailed Product Structure'!$E$10:$J$171,4,FALSE) -> Analyzer SW License x1 for PCIe 5Gb/s | K12: =VLOOKUP(I12,'Detailed Product Structure'!$E$10:$J$171,6,FALSE) -> 12995 | L12: N5306A-G01 | M12: =VLOOKUP(L12,'Detailed Product Structure'!$E$10:$J$171,4,FALSE) -> Analyzer SW License x1 for PCIe 2.5 Gb/s | N12: =VLOOKUP(L12,'Detailed Product Structure'!$E$10:$J$171,6,FALSE) -> -24886
E13: N5315A-A01 | F13: =VLOOKUP(E13,'Detailed Product Structure'!$E$10:$J$171,4,FALSE) -> Slot Interposer x1 for PCIe 5Gb/s | G13: =VLOOKUP(E13,'Detailed Product Structure'!$E$10:$J$171,6,FALSE) -> 10137 | I13: N5315A-A01 | J13: =VLOOKUP(I13,'Detailed Product Structure'!$E$10:$J$171,4,FALSE) -> Slot Interposer x1 for PCIe 5Gb/s | K13: =VLOOKUP(I13,'Detailed Product Structure'!$E$10:$J$171,6,FALSE) -> 10137 | L13: E2945A | M13: Passive x1 probe for Gen1 Only | N13: 2754
E14: N5302A | F14: =VLOOKUP(E14,'Detailed Product Structure'!$E$10:$J$171,4,FALSE) -> 2-slot portable chassis | G14: =VLOOKUP(E14,'Detailed Product Structure'!$E$10:$J$171,6,FALSE) -> 5118 | I14: N5302A | J14: =VLOOKUP(I14,'Detailed Product Structure'!$E$10:$J$171,4,FALSE) -> 2-slot portable chassis | K14: =VLOOKUP(I14,'Detailed Product Structure'!$E$10:$J$171,6,FALSE) -> 5118 | L14: N5302A | M14: =VLOOKUP(L14,'Detailed Product Structure'!$E$10:$J$171,4,FALSE) -> 2-slot portable chassis | N14: =VLOOKUP(L14,'Detailed Product Structure'!$E$10:$J$171,6,FALSE) -> 5118
L15: N5317A | M15: =VLOOKUP(L15,'Detailed Product Structure'!$E$10:$J$171,4,FALSE) -> Cable to connect E2960A probe to E2960B series | N15: =VLOOKUP(L15,'Detailed Product Structure'!$E$10:$J$171,6,FALSE) -> 2708
A16: x4 | D16: =SUM(D17:D21) -> 20748 | G16: =SUM(G17:G21) -> 28366 | H16: 47396 | K16: =SUM(K17:K21) -> 66892 | N16: =SUM(N17:N21) -> 21617
B17: E2960A-A04 | C17: Protocol Analyzer for PCI Express x4 | D17: 20748 | E17: N5306A | F17: =VLOOKUP(E17,'Detailed Product Structure'!$E$10:$J$171,4,FALSE) -> Analyzer Module for PCIe 5Gb/s (requires 2 for x 16) | G17: =VLOOKUP(E17,'Detailed Product Structure'!$E$10:$J$171,6,FALSE) -> 30300 | H17: N5310U-U24 | I17: N5306A | J17: =VLOOKUP(I17,'Detailed Product Structure'!$E$10:$J$171,4,FALSE) -> Analyzer Module for PCIe 5Gb/s (requires 2 for x 16) | K17: =VLOOKUP(I17,'Detailed Product Structure'!$E$10:$J$171,6,FALSE) -> 30300 | L17: N5306A | M17: =VLOOKUP(L17,'Detailed Product Structure'!$E$10:$J$171,4,FALSE) -> Analyzer Module for PCIe 5Gb/s (requires 2 for x 16) | N17: =VLOOKUP(L17,'Detailed Product Structure'!$E$10:$J$171,6,FALSE) -> 30300
E18: N5306A-G04 | F18: =VLOOKUP(E18,'Detailed Product Structure'!$E$10:$J$171,4,FALSE) -> Analyzer SW License x4 for PCIe 2.5 Gb/s | G18: =VLOOKUP(E18,'Detailed Product Structure'!$E$10:$J$171,6,FALSE) -> -19416 | H18: =(G16+H16)/K16-1 -> 0.1326018059 | I18: N5306A-A04 | J18: =VLOOKUP(I18,'Detailed Product Structure'!$E$10:$J$171,4,FALSE) -> Analyzer SW License x4 for PCIe 5Gb/s | K18: =VLOOKUP(I18,'Detailed Product Structure'!$E$10:$J$171,6,FALSE) -> 19110 | L18: N5306A-G04 | M18: =VLOOKUP(L18,'Detailed Product Structure'!$E$10:$J$171,4,FALSE) -> Analyzer SW License x4 for PCIe 2.5 Gb/s | N18: =VLOOKUP(L18,'Detailed Product Structure'!$E$10:$J$171,6,FALSE) -> -19416
E19: N5315A-A04 | F19: =VLOOKUP(E19,'Detailed Product Structure'!$E$10:$J$171,4,FALSE) -> Slot Interposer x4 for PCIe 5Gb/s | G19: =VLOOKUP(E19,'Detailed Product Structure'!$E$10:$J$171,6,FALSE) -> 12364 | I19: N5315A-A04 | J19: =VLOOKUP(I19,'Detailed Product Structure'!$E$10:$J$171,4,FALSE) -> Slot Interposer x4 for PCIe 5Gb/s | K19: =VLOOKUP(I19,'Detailed Product Structure'!$E$10:$J$171,6,FALSE) -> 12364 | L19: E2946A | M19: Passive x4 probe for Gen1 Only | N19: 2907
L20: N5317A | M20: =VLOOKUP(L20,'Detailed Product Structure'!$E$10:$J$171,4,FALSE) -> Cable to connect E2960A probe to E2960B series | N20: =VLOOKUP(L20,'Detailed Product Structure'!$E$10:$J$171,6,FALSE) -> 2708
E21: N5302A | F21: =VLOOKUP(E21,'Detailed Product Structure'!$E$10:$J$171,4,FALSE) -> 2-slot portable chassis | G21: =VLOOKUP(E21,'Detailed Product Structure'!$E$10:$J$171,6,FALSE) -> 5118 | I21: N5302A | J21: =VLOOKUP(I21,'Detailed Product Structure'!$E$10:$J$171,4,FALSE) -> 2-slot portable chassis | K21: =VLOOKUP(I21,'Detailed Product Structure'!$E$10:$J$171,6,FALSE) -> 5118 | L21: N5302A | M21: =VLOOKUP(L21,'Detailed Product Structure'!$E$10:$J$171,4,FALSE) -> 2-slot portable chassis | N21: =VLOOKUP(L21,'Detailed Product Structure'!$E$10:$J$171,6,FALSE) -> 5118
A22: x8 | D22: =SUM(D23:D27) -> 41509 | G22: =SUM(G23:G27) -> 50210 | H22: 36039 | K22: =SUM(K23:K27) -> 75474 | N22: =SUM(N23:N27) -> 41314
B23: E2960A-A08 | C23: Protocol Analyzer for PCI Express x8 | D23: 41509 | E23: N5306A | F23: =VLOOKUP(E23,'Detailed Product Structure'!$E$10:$J$171,4,FALSE) -> Analyzer Module for PCIe 5Gb/s (requires 2 for x 16) | G23: =VLOOKUP(E23,'Detailed Product Structure'!$E$10:$J$171,6,FALSE) -> 30300 | H23: N5310U-U28 | I23: N5306A | J23: =VLOOKUP(I23,'Detailed Product Structure'!$E$10:$J$171,4,FALSE) -> Analyzer Module for PCIe 5Gb/s (requires 2 for x 16) | K23: =VLOOKUP(I23,'Detailed Product Structure'!$E$10:$J$171,6,FALSE) -> 30300 | L23: N5306A | M23: =VLOOKUP(L23,'Detailed Product Structure'!$E$10:$J$171,4,FALSE) -> Analyzer Module for PCIe 5Gb/s (requires 2 for x 16) | N23: =VLOOKUP(L23,'Detailed Product Structure'!$E$10:$J$171,6,FALSE) -> 30300
E24: N5306A-G08 | F24: =VLOOKUP(E24,'Detailed Product Structure'!$E$10:$J$171,4,FALSE) -> Analyzer SW License x8 for PCIe 2.5 Gb/s | G24: =VLOOKUP(E24,'Detailed Product Structure'!$E$10:$J$171,6,FALSE) -> 179 | H24: =(G22+H22)/K22-1 -> 0.1427643957 | I24: N5306A-A08 | J24: =VLOOKUP(I24,'Detailed Product Structure'!$E$10:$J$171,4,FALSE) -> Analyzer SW License x8 for PCIe 5Gb/s | K24: =VLOOKUP(I24,'Detailed Product Structure'!$E$10:$J$171,6,FALSE) -> 25443 | L24: N5306A-G08 | M24: =VLOOKUP(L24,'Detailed Product Structure'!$E$10:$J$171,4,FALSE) -> Analyzer SW License x8 for PCIe 2.5 Gb/s | N24: =VLOOKUP(L24,'Detailed Product Structure'!$E$10:$J$171,6,FALSE) -> 179
E25: N5315A-A08 | F25: =VLOOKUP(E25,'Detailed Product Structure'!$E$10:$J$171,4,FALSE) -> Slot Interposer x8 for PCIe 5Gb/s | G25: =VLOOKUP(E25,'Detailed Product Structure'!$E$10:$J$171,6,FALSE) -> 14613 | I25: N5315A-A08 | J25: =VLOOKUP(I25,'Detailed Product Structure'!$E$10:$J$171,4,FALSE) -> Slot Interposer x8 for PCIe 5Gb/s | K25: =VLOOKUP(I25,'Detailed Product Structure'!$E$10:$J$171,6,FALSE) -> 14613 | L25: E2947A | M25: Passive x8 probe for Gen1 Only | N25: 3009
L26: N5317A | M26: =VLOOKUP(L26,'Detailed Product Structure'!$E$10:$J$171,4,FALSE) -> Cable to connect E2960A probe to E2960B series | N26: =VLOOKUP(L26,'Detailed Product Structure'!$E$10:$J$171,6,FALSE) -> 2708
E27: N5302A | F27: =VLOOKUP(E27,'Detailed Product Structure'!$E$10:$J$171,4,FALSE) -> 2-slot portable chassis | G27: =VLOOKUP(E27,'Detailed Product Structure'!$E$10:$J$171,6,FALSE) -> 5118 | I27: N5302A | J27: =VLOOKUP(I27,'Detailed Product Structure'!$E$10:$J$171,4,FALSE) -> 2-slot portable chassis | K27: =VLOOKUP(I27,'Detailed Product Structure'!$E$10:$J$171,6,FALSE) -> 5118 | L27: N5302A | M27: =VLOOKUP(L27,'Detailed Product Structure'!$E$10:$J$171,4,FALSE) -> 2-slot portable chassis | N27: =VLOOKUP(L27,'Detailed Product Structure'!$E$10:$J$171,6,FALSE) -> 5118
A28: x16 | D28: =SUM(D29:D35) -> 74794 | G28: =SUM(G29:G35) -> 65301 | H28: =VLOOKUP(H29, 'Detailed Product Structure'!E24:J176, 6,FALSE) -> 36019 | K28: =SUM(K29:K33) -> 120921 | N28: =SUM(N29:N35) -> 65301
B29: E2960A-A16 | C29: Protocol Analyzer for PCI Express x16 | D29: 74794 | E29: N5306A | F29: =VLOOKUP(E29,'Detailed Product Structure'!$E$10:$J$171,4,FALSE) -> Analyzer Module for PCIe 5Gb/s (requires 2 for x 16) | G29: =VLOOKUP(E29,'Detailed Product Structure'!$E$10:$J$171,6,FALSE) -> 30300 | H29: N5310U-U26 | I29: N5306A | J29: =VLOOKUP(I29,'Detailed Product Structure'!$E$10:$J$171,4,FALSE) -> Analyzer Module for PCIe 5Gb/s (requires 2 for x 16) | K29: =VLOOKUP(I29,'Detailed Product Structure'!$E$10:$J$171,6,FALSE) -> 30300 | L29: N5306A | M29: =VLOOKUP(L29,'Detailed Product Structure'!$E$10:$J$171,4,FALSE) -> Analyzer Module for PCIe 5Gb/s (requires 2 for x 16) | N29: =VLOOKUP(L29,'Detailed Product Structure'!$E$10:$J$171,6,FALSE) -> 30300
E30: N5306A | F30: =VLOOKUP(E30,'Detailed Product Structure'!$E$10:$J$171,4,FALSE) -> Analyzer Module for PCIe 5Gb/s (requires 2 for x 16) | G30: =VLOOKUP(E30,'Detailed Product Structure'!$E$10:$J$171,6,FALSE) -> 30300 | H30: =(G28+H28)/K28-1 -> -0.1620975678 | I30: N5306A | J30: =VLOOKUP(I30,'Detailed Product Structure'!$E$10:$J$171,4,FALSE) -> Analyzer Module for PCIe 5Gb/s (requires 2 for x 16) | K30: =VLOOKUP(I30,'Detailed Product Structure'!$E$10:$J$171,6,FALSE) -> 30300 | L30: N5306A | M30: =VLOOKUP(L30,'Detailed Product Structure'!$E$10:$J$171,4,FALSE) -> Analyzer Module for PCIe 5Gb/s (requires 2 for x 16) | N30: =VLOOKUP(L30,'Detailed Product Structure'!$E$10:$J$171,6,FALSE) -> 30300
E31: N5306A-G16 | F31: =VLOOKUP(E31,'Detailed Product Structure'!$E$10:$J$171,4,FALSE) -> Analyzer SW License x16 for PCIe 2.5Gb/s | G31: =VLOOKUP(E31,'Detailed Product Structure'!$E$10:$J$171,6,FALSE) -> -8639 | I31: N5306A-A16 | J31: =VLOOKUP(I31,'Detailed Product Structure'!$E$10:$J$171,4,FALSE) -> Analyzer SW License x16 for PCIe 5Gb/s | K31: =VLOOKUP(I31,'Detailed Product Structure'!$E$10:$J$171,6,FALSE) -> 21730 | L31: N5306A-G16 | M31: =VLOOKUP(L31,'Detailed Product Structure'!$E$10:$J$171,4,FALSE) -> Analyzer SW License x16 for PCIe 2.5Gb/s | N31: =VLOOKUP(L31,'Detailed Product Structure'!$E$10:$J$171,6,FALSE) -> -8639
E32: N5306A-G16 | F32: =VLOOKUP(E32,'Detailed Product Structure'!$E$10:$J$171,4,FALSE) -> Analyzer SW License x16 for PCIe 2.5Gb/s | G32: =VLOOKUP(E32,'Detailed Product Structure'!$E$10:$J$171,6,FALSE) -> -8639 | I32: N5306A-A16 | J32: =VLOOKUP(I32,'Detailed Product Structure'!$E$10:$J$171,4,FALSE) -> Analyzer SW License x16 for PCIe 5Gb/s | K32: =VLOOKUP(I32,'Detailed Product Structure'!$E$10:$J$171,6,FALSE) -> 21730 | L32: N5306A-G16 | M32: =VLOOKUP(L32,'Detailed Product Structure'!$E$10:$J$171,4,FALSE) -> Analyzer SW License x16 for PCIe 2.5Gb/s | N32: =VLOOKUP(L32,'Detailed Product Structure'!$E$10:$J$171,6,FALSE) -> -8639
E33: N5315A-A16 | F33: =VLOOKUP(E33,'Detailed Product Structure'!$E$10:$J$171,4,FALSE) -> Slot Interposer x16 for PCIe 5Gb/s | G33: =VLOOKUP(E33,'Detailed Product Structure'!$E$10:$J$171,6,FALSE) -> 16861 | I33: N5315A-A16 | J33: =VLOOKUP(I33,'Detailed Product Structure'!$E$10:$J$171,4,FALSE) -> Slot Interposer x16 for PCIe 5Gb/s | K33: =VLOOKUP(I33,'Detailed Product Structure'!$E$10:$J$171,6,FALSE) -> 16861 | L33: N5315A-A16 | M33: =VLOOKUP(L33,'Detailed Product Structure'!$E$10:$J$171,4,FALSE) -> Slot Interposer x16 for PCIe 5Gb/s | N33: =VLOOKUP(L33,'Detailed Product Structure'!$E$10:$J$171,6,FALSE) -> 16861
E35: N5302A | F35: =VLOOKUP(E35,'Detailed Product Structure'!$E$10:$J$171,4,FALSE) -> 2-slot portable chassis | G35: =VLOOKUP(E35,'Detailed Product Structure'!$E$10:$J$171,6,FALSE) -> 5118 | I35: N5302A | J35: =VLOOKUP(I35,'Detailed Product Structure'!$E$10:$J$171,4,FALSE) -> 2-slot portable chassis | K35: =VLOOKUP(I35,'Detailed Product Structure'!$E$10:$J$171,6,FALSE) -> 5118 | L35: N5302A | M35: =VLOOKUP(L35,'Detailed Product Structure'!$E$10:$J$171,4,FALSE) -> 2-slot portable chassis | N35: =VLOOKUP(L35,'Detailed Product Structure'!$E$10:$J$171,6,FALSE) -> 5118
A38: Exerciser
A40: Link
B41: Gen1 | E41: Gen2 Ready Configuration | H41: Upgrade to Gen2 | I41: Gen2
A42: x1 | D42: =SUM(D43:D46) -> 38958 | G42: =SUM(G43:G44) -> 37287 | H42: =VLOOKUP(H43,'Detailed Product Structure'!$E$10:$J$171,6,FALSE) -> 25694 | K42: =SUM(K43:K44) -> 58212
B43: E2960A-E01 | C43: Protocol Exerciser For PCI Expres x1 | D43: 38958 | E43: N5309A-E01 | F43: =VLOOKUP(E43,'Detailed Product Structure'!$E$10:$J$171,4,FALSE) -> Exerciser for PCIe 5Gb/s | G43: =VLOOKUP(E43,'Detailed Product Structure'!$E$10:$J$171,6,FALSE) -> 9158 | H43: N5310U-E12 | I43: N5309A-E01 | J43: =VLOOKUP(I43,'Detailed Product Structure'!$E$10:$J$171,4,FALSE) -> Exerciser for PCIe 5Gb/s | K43: =VLOOKUP(I43,'Detailed Product Structure'!$E$10:$J$171,6,FALSE) -> 9158
E44: N5309A-EX1 | F44: =VLOOKUP(E44,'Detailed Product Structure'!$E$10:$J$171,4,FALSE) -> Exerciser SW License and LTSSM for PCIe 2.5Gb/s | G44: =VLOOKUP(E44,'Detailed Product Structure'!$E$10:$J$171,6,FALSE) -> 28129 | I44: N5309A-EX2 | J44: =VLOOKUP(I44,'Detailed Product Structure'!$E$10:$J$171,4,FALSE) -> Exerciser SW License and LTSSM for PCIe 5Gb/s | K44: =VLOOKUP(I44,'Detailed Product Structure'!$E$10:$J$171,6,FALSE) -> 49054
A47: x4 | D47: =SUM(D48:D51) -> 46136 | G47: =SUM(G48:G49) -> 49355 | H47: =VLOOKUP(H48,'Detailed Product Structure'!$E$10:$J$171,6,FALSE) -> 25694 | K47: =SUM(K48:K49) -> 70280
B48: E2960A-E04 | C48: Protocol Exerciser For PCI Expres x4 | D48: 46136 | E48: N5309A-E04 | F48: =VLOOKUP(E48,'Detailed Product Structure'!$E$10:$J$171,4,FALSE) -> Half Sized Exerciser and LTSSM Board x4 for PCIe 5Gb/s | G48: =VLOOKUP(E48,'Detailed Product Structure'!$E$10:$J$171,6,FALSE) -> 21226 | H48: N5310U-E12 | I48: N5309A-E04 | J48: =VLOOKUP(I48,'Detailed Product Structure'!$E$10:$J$171,4,FALSE) -> Half Sized Exerciser and LTSSM Board x4 for PCIe 5Gb/s | K48: =VLOOKUP(I48,'Detailed Product Structure'!$E$10:$J$171,6,FALSE) -> 21226
E49: N5309A-EX1 | F49: =VLOOKUP(E49,'Detailed Product Structure'!$E$10:$J$171,4,FALSE) -> Exerciser SW License and LTSSM for PCIe 2.5Gb/s | G49: =VLOOKUP(E49,'Detailed Product Structure'!$E$10:$J$171,6,FALSE) -> 28129 | I49: N5309A-EX2 | J49: =VLOOKUP(I49,'Detailed Product Structure'!$E$10:$J$171,4,FALSE) -> Exerciser SW License and LTSSM for PCIe 5Gb/s | K49: =VLOOKUP(I49,'Detailed Product Structure'!$E$10:$J$171,6,FALSE) -> 49054
A52: x8 | D52: =SUM(D53:D56) -> 67458 | G52: =SUM(G53:G54) -> 60389 | H52: =VLOOKUP(H53,'Detailed Product Structure'!$E$10:$J$171,6,FALSE) -> 25694 | K52: =SUM(K53:K54) -> 81314
B53: E2960A-E08 | C53: Protocol Exerciser For PCI Expres x8 | D53: 67458 | E53: N5309A-E08 | F53: =VLOOKUP(E53,'Detailed Product Structure'!$E$10:$J$171,4,FALSE) -> Half Sized Exerciser and LTSSM Board x8 for PCIe 5Gb/s | G53: =VLOOKUP(E53,'Detailed Product Structure'!$E$10:$J$171,6,FALSE) -> 32260 | H53: N5310U-E12 | I53: N5309A-E08 | J53: =VLOOKUP(I53,'Detailed Product Structure'!$E$10:$J$171,4,FALSE) -> Half Sized Exerciser and LTSSM Board x8 for PCIe 5Gb/s | K53: =VLOOKUP(I53,'Detailed Product Structure'!$E$10:$J$171,6,FALSE) -> 32260
E54: N5309A-EX1 | F54: =VLOOKUP(E54,'Detailed Product Structure'!$E$10:$J$171,4,FALSE) -> Exerciser SW License and LTSSM for PCIe 2.5Gb/s | G54: =VLOOKUP(E54,'Detailed Product Structure'!$E$10:$J$171,6,FALSE) -> 28129 | I54: N5309A-EX2 | J54: =VLOOKUP(I54,'Detailed Product Structure'!$E$10:$J$171,4,FALSE) -> Exerciser SW License and LTSSM for PCIe 5Gb/s | K54: =VLOOKUP(I54,'Detailed Product Structure'!$E$10:$J$171,6,FALSE) -> 49054
A57: x16 | G57: =SUM(G58:G59) -> 71620 | H57: =VLOOKUP(H58,'Detailed Product Structure'!$E$10:$J$171,6,FALSE) -> 25694 | K57: =SUM(K58:K59) -> 92545
E58: N5309A-E16 | F58: =VLOOKUP(E58,'Detailed Product Structure'!$E$10:$J$171,4,FALSE) -> Half Sized Exerciser and LTSSM Board x16 for PCIe 5Gb/s | G58: =VLOOKUP(E58,'Detailed Product Structure'!$E$10:$J$171,6,FALSE) -> 43491 | H58: N5310U-E12 | I58: N5309A-E16 | J58: =VLOOKUP(I58,'Detailed Product Structure'!$E$10:$J$171,4,FALSE) -> Half Sized Exerciser and LTSSM Board x16 for PCIe 5Gb/s | K58: =VLOOKUP(I58,'Detailed Product Structure'!$E$10:$J$171,6,FALSE) -> 43491
E59: N5309A-EX1 | F59: =VLOOKUP(E59,'Detailed Product Structure'!$E$10:$J$171,4,FALSE) -> Exerciser SW License and LTSSM for PCIe 2.5Gb/s | G59: =VLOOKUP(E59,'Detailed Product Structure'!$E$10:$J$171,6,FALSE) -> 28129 | I59: N5309A-EX2 | J59: =VLOOKUP(I59,'Detailed Product Structure'!$E$10:$J$171,4,FALSE) -> Exerciser SW License and LTSSM for PCIe 5Gb/s | K59: =VLOOKUP(I59,'Detailed Product Structure'!$E$10:$J$171,6,FALSE) -> 49054

Sheet Competitive Pricing
A1: Gen2 | B1: Gen2 Analyzer
C2: 2004 Prices | N2: 2007 Prices | Y2: 2008 Prices
B3: Link | C3: Agilent 2004 Prices | F3: LeCroy Pricing (2004 Prices) | J3: Tek Pricing (2004) | Q3: LeCroy Pricing (Feb 07) | U3: Tek Pricing | AB3: LeCroy Pricing (unless specified, last updated Feb 07) | AF3: Tek Pricing
F4: US | G4: Japan | H4: Asia | I4: Europe | J4: US | K4: Japan | L4: Asia | M4: Europe | N4: Gen2 Configuration (Slot interposer probes) | Q4: US | R4: Japan | S4: Asia | T4: Europe | U4: US | V4: Japan | W4: Asia | X4: Europe | Y4: Gen2 Configuration (Slot interposer probes) | AB4: US | AC4: Japan | AD4: Asia | AE4: Europe | AF4: US | AG4: Japan | AH4: Asia | AI4: Europe
B5: x1 | P5: =SUM(P6:P9) ->  | AA5: =SUM(AA6:AA9) -> 
N6: N5306A | O6: =VLOOKUP(N6,'Detailed Product Structure'!$E$10:$J$171,4,FALSE) -> Analyzer Module for PCIe 5Gb/s (requires 2 for x 16) | P6: =VLOOKUP(N6,'Detailed Product Structure'!$E$10:$J$171,6,FALSE) -> 30300 | U6: 55000 | Y6: N5306A | Z6: =VLOOKUP(Y6,'Detailed Product Structure'!$E$10:$J$171,4,FALSE) -> Analyzer Module for PCIe 5Gb/s (requires 2 for x 16) | AA6: =VLOOKUP(Y6,'Detailed Product Structure'!$E$10:$J$171,6,FALSE) -> 30300
C7: N/A | N7: N5306A-A01 | O7: =VLOOKUP(N7,'Detailed Product Structure'!$E$10:$J$171,4,FALSE) -> Analyzer SW License x1 for PCIe 5Gb/s | P7: =VLOOKUP(N7,'Detailed Product Structure'!$E$10:$J$171,6,FALSE) -> 12995 | Y7: N5306A-A01 | Z7: =VLOOKUP(Y7,'Detailed Product Structure'!$E$10:$J$171,4,FALSE) -> Analyzer SW License x1 for PCIe 5Gb/s | AA7: =VLOOKUP(Y7,'Detailed Product Structure'!$E$10:$J$171,6,FALSE) -> 12995
N8: N5315A-A01 | O8: =VLOOKUP(N8,'Detailed Product Structure'!$E$10:$J$171,4,FALSE) -> Slot Interposer x1 for PCIe 5Gb/s | P8: =VLOOKUP(N8,'Detailed Product Structure'!$E$10:$J$171,6,FALSE) -> 10137 | Y8: N5315A-A01 | Z8: =VLOOKUP(Y8,'Detailed Product Structure'!$E$10:$J$171,4,FALSE) -> Slot Interposer x1 for PCIe 5Gb/s | AA8: =VLOOKUP(Y8,'Detailed Product Structure'!$E$10:$J$171,6,FALSE) -> 10137
N9: N5540A | O9: =VLOOKUP(N9,'Detailed Product Structure'!$E$10:$J$171,4,FALSE) ->  | P9: =VLOOKUP(N9,'Detailed Product Structure'!$E$10:$J$171,6,FALSE) ->  | Y9: N5540A | Z9: =VLOOKUP(Y9,'Detailed Product Structure'!$E$10:$J$171,4,FALSE) ->  | AA9: =VLOOKUP(Y9,'Detailed Product Structure'!$E$10:$J$171,6,FALSE) -> 
B11: x4 | P11: =SUM(P12:P16) ->  | AA11: =SUM(AA12:AA16) ->  | AB11: 50000
N12: N5306A | O12: =VLOOKUP(N12,'Detailed Product Structure'!$E$10:$J$171,4,FALSE) -> Analyzer Module for PCIe 5Gb/s (requires 2 for x 16) | P12: =VLOOKUP(N12,'Detailed Product Structure'!$E$10:$J$171,6,FALSE) -> 30300 | U12: 55000 | Y12: N5306A | Z12: =VLOOKUP(Y12,'Detailed Product Structure'!$E$10:$J$171,4,FALSE) -> Analyzer Module for PCIe 5Gb/s (requires 2 for x 16) | AA12: =VLOOKUP(Y12,'Detailed Product Structure'!$E$10:$J$171,6,FALSE) -> 30300
N13: N5306A-A04 | O13: =VLOOKUP(N13,'Detailed Product Structure'!$E$10:$J$171,4,FALSE) -> Analyzer SW License x4 for PCIe 5Gb/s | P13: =VLOOKUP(N13,'Detailed Product Structure'!$E$10:$J$171,6,FALSE) -> 19110 | Y13: N5306A-A04 | Z13: =VLOOKUP(Y13,'Detailed Product Structure'!$E$10:$J$171,4,FALSE) -> Analyzer SW License x4 for PCIe 5Gb/s | AA13: =VLOOKUP(Y13,'Detailed Product Structure'!$E$10:$J$171,6,FALSE) -> 19110
N14: N5315A-A04 | O14: =VLOOKUP(N14,'Detailed Product Structure'!$E$10:$J$171,4,FALSE) -> Slot Interposer x4 for PCIe 5Gb/s | P14: =VLOOKUP(N14,'Detailed Product Structure'!$E$10:$J$171,6,FALSE) -> 12364 | Y14: N5315A-A04 | Z14: =VLOOKUP(Y14,'Detailed Product Structure'!$E$10:$J$171,4,FALSE) -> Slot Interposer x4 for PCIe 5Gb/s | AA14: =VLOOKUP(Y14,'Detailed Product Structure'!$E$10:$J$171,6,FALSE) -> 12364
N16: N5540A | O16: =VLOOKUP(N16,'Detailed Product Structure'!$E$10:$J$171,4,FALSE) ->  | P16: =VLOOKUP(N16,'Detailed Product Structure'!$E$10:$J$171,6,FALSE) ->  | Y16: N5540A | Z16: =VLOOKUP(Y16,'Detailed Product Structure'!$E$10:$J$171,4,FALSE) ->  | AA16: =VLOOKUP(Y16,'Detailed Product Structure'!$E$10:$J$171,6,FALSE) -> 
B17: x8 | P17: =SUM(P18:P22) ->  | AA17: =SUM(AA18:AA22) ->  | AB17: 70000
N18: N5306A | O18: =VLOOKUP(N18,'Detailed Product Structure'!$E$10:$J$171,4,FALSE) -> Analyzer Module for PCIe 5Gb/s (requires 2 for x 16) | P18: =VLOOKUP(N18,'Detailed Product Structure'!$E$10:$J$171,6,FALSE) -> 30300 | Q18: 69950 | U18: 75000 | Y18: N5306A | Z18: =VLOOKUP(Y18,'Detailed Product Structure'!$E$10:$J$171,4,FALSE) -> Analyzer Module for PCIe 5Gb/s (requires 2 for x 16) | AA18: =VLOOKUP(Y18,'Detailed Product Structure'!$E$10:$J$171,6,FALSE) -> 30300 | AB18: 69950
N19: N5306A-A08 | O19: =VLOOKUP(N19,'Detailed Product Structure'!$E$10:$J$171,4,FALSE) -> Analyzer SW License x8 for PCIe 5Gb/s | P19: =VLOOKUP(N19,'Detailed Product Structure'!$E$10:$J$171,6,FALSE) -> 25443 | Y19: N5306A-A08 | Z19: =VLOOKUP(Y19,'Detailed Product Structure'!$E$10:$J$171,4,FALSE) -> Analyzer SW License x8 for PCIe 5Gb/s | AA19: =VLOOKUP(Y19,'Detailed Product Structure'!$E$10:$J$171,6,FALSE) -> 25443
N20: N5315A-A08 | O20: =VLOOKUP(N20,'Detailed Product Structure'!$E$10:$J$171,4,FALSE) -> Slot Interposer x8 for PCIe 5Gb/s | P20: =VLOOKUP(N20,'Detailed Product Structure'!$E$10:$J$171,6,FALSE) -> 14613 | U20: 60000 | Y20: N5315A-A08 | Z20: =VLOOKUP(Y20,'Detailed Product Structure'!$E$10:$J$171,4,FALSE) -> Slot Interposer x8 for PCIe 5Gb/s | AA20: =VLOOKUP(Y20,'Detailed Product Structure'!$E$10:$J$171,6,FALSE) -> 14613
N22: N5540A | O22: =VLOOKUP(N22,'Detailed Product Structure'!$E$10:$J$171,4,FALSE) ->  | P22: =VLOOKUP(N22,'Detailed Product Structure'!$E$10:$J$171,6,FALSE) ->  | Y22: N5540A | Z22: =VLOOKUP(Y22,'Detailed Product Structure'!$E$10:$J$171,4,FALSE) ->  | AA22: =VLOOKUP(Y22,'Detailed Product Structure'!$E$10:$J$171,6,FALSE) -> 
B23: x16 | P23: =SUM(P24:P28) -> 120921 | Q23: 119950 | AA23: =SUM(AA24:AA28) -> 120921 | AB23: 115000
N24: N5306A | O24: =VLOOKUP(N24,'Detailed Product Structure'!$E$10:$J$171,4,FALSE) -> Analyzer Module for PCIe 5Gb/s (requires 2 for x 16) | P24: =VLOOKUP(N24,'Detailed Product Structure'!$E$10:$J$171,6,FALSE) -> 30300 | U24: 150000 | Y24: N5306A | Z24: =VLOOKUP(Y24,'Detailed Product Structure'!$E$10:$J$171,4,FALSE) -> Analyzer Module for PCIe 5Gb/s (requires 2 for x 16) | AA24: =VLOOKUP(Y24,'Detailed Product Structure'!$E$10:$J$171,6,FALSE) -> 30300
N25: N5306A | O25: =VLOOKUP(N25,'Detailed Product Structure'!$E$10:$J$171,4,FALSE) -> Analyzer Module for PCIe 5Gb/s (requires 2 for x 16) | P25: =VLOOKUP(N25,'Detailed Product Structure'!$E$10:$J$171,6,FALSE) -> 30300 | Y25: N5306A | Z25: =VLOOKUP(Y25,'Detailed Product Structure'!$E$10:$J$171,4,FALSE) -> Analyzer Module for PCIe 5Gb/s (requires 2 for x 16) | AA25: =VLOOKUP(Y25,'Detailed Product Structure'!$E$10:$J$171,6,FALSE) -> 30300
N26: N5306A-A16 | O26: =VLOOKUP(N26,'Detailed Product Structure'!$E$10:$J$171,4,FALSE) -> Analyzer SW License x16 for PCIe 5Gb/s | P26: =VLOOKUP(N26,'Detailed Product Structure'!$E$10:$J$171,6,FALSE) -> 21730 | Y26: N5306A-A16 | Z26: =VLOOKUP(Y26,'Detailed Product Structure'!$E$10:$J$171,4,FALSE) -> Analyzer SW License x16 for PCIe 5Gb/s | AA26: =VLOOKUP(Y26,'Detailed Product Structure'!$E$10:$J$171,6,FALSE) -> 21730
N27: N5306A-A16 | O27: =VLOOKUP(N27,'Detailed Product Structure'!$E$10:$J$171,4,FALSE) -> Analyzer SW License x16 for PCIe 5Gb/s | P27: =VLOOKUP(N27,'Detailed Product Structure'!$E$10:$J$171,6,FALSE) -> 21730 | Y27: N5306A-A16 | Z27: =VLOOKUP(Y27,'Detailed Product Structure'!$E$10:$J$171,4,FALSE) -> Analyzer SW License x16 for PCIe 5Gb/s | AA27: =VLOOKUP(Y27,'Detailed Product Structure'!$E$10:$J$171,6,FALSE) -> 21730
N28: N5315A-A16 | O28: =VLOOKUP(N28,'Detailed Product Structure'!$E$10:$J$171,4,FALSE) -> Slot Interposer x16 for PCIe 5Gb/s | P28: =VLOOKUP(N28,'Detailed Product Structure'!$E$10:$J$171,6,FALSE) -> 16861 | Q28: 15000 | U28: 60000 | Y28: N5315A-A16 | Z28: =VLOOKUP(Y28,'Detailed Product Structure'!$E$10:$J$171,4,FALSE) -> Slot Interposer x16 for PCIe 5Gb/s | AA28: =VLOOKUP(Y28,'Detailed Product Structure'!$E$10:$J$171,6,FALSE) -> 16861 | AB28: 15000
N30: N5540A | O30: =VLOOKUP(N30,'Detailed Product Structure'!$E$10:$J$171,4,FALSE) ->  | P30: =VLOOKUP(N30,'Detailed Product Structure'!$E$10:$J$171,6,FALSE) ->  | Y30: N5540A | Z30: =VLOOKUP(Y30,'Detailed Product Structure'!$E$10:$J$171,4,FALSE) ->  | AA30: =VLOOKUP(Y30,'Detailed Product Structure'!$E$10:$J$171,6,FALSE) -> 
B31: Probes
N32: N4241A | O32: Mid-bus probe | P32: ='Detailed Product Structure'!#REF! ->  | Q32: 15000 | Y32: N4241A | Z32: Mid-bus probe | AA32: ='Detailed Product Structure'!J65 -> 22268 | AB32: 15000
N33: N4241F | O33: Flying Leads Probe | P33: ='Detailed Product Structure'!#REF! ->  | Q33: Available in Nov 2008? | Y33: N4241F | Z33: Flying Leads Probe | AA33: ='Detailed Product Structure'!J74 -> 25725 | AB33: Available in Nov 2008?
N34: N5315A-A16 | O34: Slot Interposer x16 | P34: 16027 | Q34: 15000 | Y34: N5315A-A16 | Z34: Slot Interposer x16 | AA34: 16027 | AB34: 15000
B36: Gen2 Exerciser
B38: Link | F38: LeCroy Pricing (2004) | J38: Tek Pricing | Q38: LeCroy Pricing | U38: Tek Pricing | AB38: LeCroy Pricing | AF38: Tek Pricing
F39: US | G39: Japan | H39: Asia | I39: Europe | J39: US | K39: Japan | L39: Asia | M39: Europe | N39: Gen2 | Q39: US | R39: Japan | S39: Asia | T39: Europe | U39: US | V39: Japan | W39: Asia | X39: Europe | Y39: Gen2 | AB39: US | AC39: Japan | AD39: Asia | AE39: Europe | AF39: US | AG39: Japan | AH39: Asia | AI39: Europe
B40: x1 | P40: =SUM(P41:P42) -> 58212 | AA40: =SUM(AA41:AA42) -> 58212
N41: N5309A-E01 | O41: =VLOOKUP(N41,'Detailed Product Structure'!$E$10:$J$171,4,FALSE) -> Exerciser for PCIe 5Gb/s | P41: =VLOOKUP(N41,'Detailed Product Structure'!$E$10:$J$171,6,FALSE) -> 9158 | Y41: N5309A-E01 | Z41: =VLOOKUP(Y41,'Detailed Product Structure'!$E$10:$J$171,4,FALSE) -> Exerciser for PCIe 5Gb/s | AA41: =VLOOKUP(Y41,'Detailed Product Structure'!$E$10:$J$171,6,FALSE) -> 9158
N42: N5309A-EX2 | O42: =VLOOKUP(N42,'Detailed Product Structure'!$E$10:$J$171,4,FALSE) -> Exerciser SW License and LTSSM for PCIe 5Gb/s | P42: =VLOOKUP(N42,'Detailed Product Structure'!$E$10:$J$171,6,FALSE) -> 49054 | Y42: N5309A-EX2 | Z42: =VLOOKUP(Y42,'Detailed Product Structure'!$E$10:$J$171,4,FALSE) -> Exerciser SW License and LTSSM for PCIe 5Gb/s | AA42: =VLOOKUP(Y42,'Detailed Product Structure'!$E$10:$J$171,6,FALSE) -> 49054
B45: x4 | P45: =SUM(P46:P47) -> 70280 | AA45: =SUM(AA46:AA47) -> 70280
N46: N5309A-E04 | O46: =VLOOKUP(N46,'Detailed Product Structure'!$E$10:$J$171,4,FALSE) -> Half Sized Exerciser and LTSSM Board x4 for PCIe 5Gb/s | P46: =VLOOKUP(N46,'Detailed Product Structure'!$E$10:$J$171,6,FALSE) -> 21226 | Y46: N5309A-E04 | Z46: =VLOOKUP(Y46,'Detailed Product Structure'!$E$10:$J$171,4,FALSE) -> Half Sized Exerciser and LTSSM Board x4 for PCIe 5Gb/s | AA46: =VLOOKUP(Y46,'Detailed Product Structure'!$E$10:$J$171,6,FALSE) -> 21226
N47: N5309A-EX2 | O47: =VLOOKUP(N47,'Detailed Product Structure'!$E$10:$J$171,4,FALSE) -> Exerciser SW License and LTSSM for PCIe 5Gb/s | P47: =VLOOKUP(N47,'Detailed Product Structure'!$E$10:$J$171,6,FALSE) -> 49054 | Y47: N5309A-EX2 | Z47: =VLOOKUP(Y47,'Detailed Product Structure'!$E$10:$J$171,4,FALSE) -> Exerciser SW License and LTSSM for PCIe 5Gb/s | AA47: =VLOOKUP(Y47,'Detailed Product Structure'!$E$10:$J$171,6,FALSE) -> 49054
B50: x8 | P50: =SUM(P51:P52) -> 81314 | Q50: 70000 | AA50: =SUM(AA51:AA52) -> 81314 | AB50: 70000
N51: N5309A-E08 | O51: =VLOOKUP(N51,'Detailed Product Structure'!$E$10:$J$171,4,FALSE) -> Half Sized Exerciser and LTSSM Board x8 for PCIe 5Gb/s | P51: =VLOOKUP(N51,'Detailed Product Structure'!$E$10:$J$171,6,FALSE) -> 32260 | Y51: N5309A-E08 | Z51: =VLOOKUP(Y51,'Detailed Product Structure'!$E$10:$J$171,4,FALSE) -> Half Sized Exerciser and LTSSM Board x8 for PCIe 5Gb/s | AA51: =VLOOKUP(Y51,'Detailed Product Structure'!$E$10:$J$171,6,FALSE) -> 32260
N52: N5309A-EX2 | O52: =VLOOKUP(N52,'Detailed Product Structure'!$E$10:$J$171,4,FALSE) -> Exerciser SW License and LTSSM for PCIe 5Gb/s | P52: =VLOOKUP(N52,'Detailed Product Structure'!$E$10:$J$171,6,FALSE) -> 49054 | Y52: N5309A-EX2 | Z52: =VLOOKUP(Y52,'Detailed Product Structure'!$E$10:$J$171,4,FALSE) -> Exerciser SW License and LTSSM for PCIe 5Gb/s | AA52: =VLOOKUP(Y52,'Detailed Product Structure'!$E$10:$J$171,6,FALSE) -> 49054
B55: x16 | P55: =SUM(P56:P57) -> 92545 | AA55: =SUM(AA56:AA57) -> 92545
N56: N5309A-E16 | O56: =VLOOKUP(N56,'Detailed Product Structure'!$E$10:$J$171,4,FALSE) -> Half Sized Exerciser and LTSSM Board x16 for PCIe 5Gb/s | P56: =VLOOKUP(N56,'Detailed Product Structure'!$E$10:$J$171,6,FALSE) -> 43491 | Y56: N5309A-E16 | Z56: =VLOOKUP(Y56,'Detailed Product Structure'!$E$10:$J$171,4,FALSE) -> Half Sized Exerciser and LTSSM Board x16 for PCIe 5Gb/s | AA56: =VLOOKUP(Y56,'Detailed Product Structure'!$E$10:$J$171,6,FALSE) -> 43491
N57: N5309A-EX2 | O57: =VLOOKUP(N57,'Detailed Product Structure'!$E$10:$J$171,4,FALSE) -> Exerciser SW License and LTSSM for PCIe 5Gb/s | P57: =VLOOKUP(N57,'Detailed Product Structure'!$E$10:$J$171,6,FALSE) -> 49054 | Y57: N5309A-EX2 | Z57: =VLOOKUP(Y57,'Detailed Product Structure'!$E$10:$J$171,4,FALSE) -> Exerciser SW License and LTSSM for PCIe 5Gb/s | AA57: =VLOOKUP(Y57,'Detailed Product Structure'!$E$10:$J$171,6,FALSE) -> 49054
Q58: 29950
A63: Gen1 | B63: Gen1 Analyzer
C64: 2004 Prices
B65: Link | F65: LeCroy Pricing (2004) | J65: Tek Pricing (2004) | Q65: LeCroy Pricing | U65: Tek Pricing | AB65: LeCroy Pricing | AF65: Tek Pricing
C66: Gen2 Ready Configuration - with Gen1 Probes | F66: US | G66: Japan | H66: Asia | I66: Europe | J66: US | K66: Japan | L66: Asia | M66: Europe | N66: Gen2 Ready Configuration - with Gen1 Probes | Q66: US | R66: Japan | S66: Asia | T66: Europe | U66: US | V66: Japan | W66: Asia | X66: Europe | Y66: Gen2 Ready Configuration - with Gen1 Probes | AB66: US | AC66: Japan | AD66: Asia | AE66: Europe | AF66: US | AG66: Japan | AH66: Asia | AI66: Europe
B67: x1 | E67: =SUM(E68:E72) ->  | F67: 26950 | J67: =SUM(J68:J72) -> 105850 | P67: =SUM(P68:P72) ->  | AA67: =SUM(AA68:AA72) ->  | AB67: 15950
C68: E2960A-A01 | D68: =VLOOKUP(C68,'Detailed Product Structure'!$E$10:$J$171,4,FALSE) ->  | E68: =VLOOKUP(C68,'Detailed Product Structure'!$E$10:$J$171,6,FALSE) ->  | J68: =16750*2 -> 33500 | N68: N5306A | O68: =VLOOKUP(N68,'Detailed Product Structure'!$E$10:$J$171,4,FALSE) -> Analyzer Module for PCIe 5Gb/s (requires 2 for x 16) | P68: =VLOOKUP(N68,'Detailed Product Structure'!$E$10:$J$171,6,FALSE) -> 30300 | Y68: N5306A | Z68: =VLOOKUP(Y68,'Detailed Product Structure'!$E$10:$J$171,4,FALSE) -> Analyzer Module for PCIe 5Gb/s (requires 2 for x 16) | AA68: =VLOOKUP(Y68,'Detailed Product Structure'!$E$10:$J$171,6,FALSE) -> 30300
N69: N5306A-G01 | O69: =VLOOKUP(N69,'Detailed Product Structure'!$E$10:$J$171,4,FALSE) -> Analyzer SW License x1 for PCIe 2.5 Gb/s | P69: =VLOOKUP(N69,'Detailed Product Structure'!$E$10:$J$171,6,FALSE) -> -24886 | Y69: N5306A-G01 | Z69: =VLOOKUP(Y69,'Detailed Product Structure'!$E$10:$J$171,4,FALSE) -> Analyzer SW License x1 for PCIe 2.5 Gb/s | AA69: =VLOOKUP(Y69,'Detailed Product Structure'!$E$10:$J$171,6,FALSE) -> -24886
F70: 3000 | J70: 60000 | N70: E2945A | O70: Passive x1 probe for Gen1 Only | P70: 2754 | Y70: E2945A | Z70: Passive x1 probe for Gen1 Only | AA70: 2754
N71: N5540A | O71: =VLOOKUP(N71,'Detailed Product Structure'!$E$10:$J$171,4,FALSE) ->  | P71: =VLOOKUP(N71,'Detailed Product Structure'!$E$10:$J$171,6,FALSE) ->  | Y71: N5540A | Z71: =VLOOKUP(Y71,'Detailed Product Structure'!$E$10:$J$171,4,FALSE) ->  | AA71: =VLOOKUP(Y71,'Detailed Product Structure'!$E$10:$J$171,6,FALSE) -> 
J72: 12350 | N72: N5317A | O72: =VLOOKUP(N72,'Detailed Product Structure'!$E$10:$J$171,4,FALSE) -> Cable to connect E2960A probe to E2960B series | P72: =VLOOKUP(N72,'Detailed Product Structure'!$E$10:$J$171,6,FALSE) -> 2708 | Y72: N5317A | Z72: =VLOOKUP(Y72,'Detailed Product Structure'!$E$10:$J$171,4,FALSE) -> Cable to connect E2960A probe to E2960B series | AA72: =VLOOKUP(Y72,'Detailed Product Structure'!$E$10:$J$171,6,FALSE) -> 2708
B73: x4 | E73: =SUM(E74:E78) ->  | F73: 34750 | J73: =SUM(J74:J78) -> 105860 | P73: =SUM(P74:P78) ->  | AA73: =SUM(AA74:AA78) ->  | AB73: 24950
C74: E2960A-A04 | D74: =VLOOKUP(C74,'Detailed Product Structure'!$E$10:$J$171,4,FALSE) ->  | E74: =VLOOKUP(C74,'Detailed Product Structure'!$E$10:$J$171,6,FALSE) ->  | J74: =16750*2 -> 33500 | N74: N5306A | O74: =VLOOKUP(N74,'Detailed Product Structure'!$E$10:$J$171,4,FALSE) -> Analyzer Module for PCIe 5Gb/s (requires 2 for x 16) | P74: =VLOOKUP(N74,'Detailed Product Structure'!$E$10:$J$171,6,FALSE) -> 30300 | Y74: N5306A | Z74: =VLOOKUP(Y74,'Detailed Product Structure'!$E$10:$J$171,4,FALSE) -> Analyzer Module for PCIe 5Gb/s (requires 2 for x 16) | AA74: =VLOOKUP(Y74,'Detailed Product Structure'!$E$10:$J$171,6,FALSE) -> 30300
N75: N5306A-G04 | O75: =VLOOKUP(N75,'Detailed Product Structure'!$E$10:$J$171,4,FALSE) -> Analyzer SW License x4 for PCIe 2.5 Gb/s | P75: =VLOOKUP(N75,'Detailed Product Structure'!$E$10:$J$171,6,FALSE) -> -19416 | Y75: N5306A-G04 | Z75: =VLOOKUP(Y75,'Detailed Product Structure'!$E$10:$J$171,4,FALSE) -> Analyzer SW License x4 for PCIe 2.5 Gb/s | AA75: =VLOOKUP(Y75,'Detailed Product Structure'!$E$10:$J$171,6,FALSE) -> -19416
F76: 3200 | J76: 60000 | N76: E2946A | O76: Passive x4 probe for Gen1 Only | P76: 2907 | Y76: E2946A | Z76: Passive x4 probe for Gen1 Only | AA76: 2907
N77: N5317A | O77: =VLOOKUP(N77,'Detailed Product Structure'!$E$10:$J$171,4,FALSE) -> Cable to connect E2960A probe to E2960B series | P77: =VLOOKUP(N77,'Detailed Product Structure'!$E$10:$J$171,6,FALSE) -> 2708 | Y77: N5317A | Z77: =VLOOKUP(Y77,'Detailed Product Structure'!$E$10:$J$171,4,FALSE) -> Cable to connect E2960A probe to E2960B series | AA77: =VLOOKUP(Y77,'Detailed Product Structure'!$E$10:$J$171,6,FALSE) -> 2708
J78: 12360 | N78: N5540A | O78: =VLOOKUP(N78,'Detailed Product Structure'!$E$10:$J$171,4,FALSE) ->  | P78: =VLOOKUP(N78,'Detailed Product Structure'!$E$10:$J$171,6,FALSE) ->  | Y78: N5540A | Z78: =VLOOKUP(Y78,'Detailed Product Structure'!$E$10:$J$171,4,FALSE) ->  | AA78: =VLOOKUP(Y78,'Detailed Product Structure'!$E$10:$J$171,6,FALSE) -> 
B79: x8 | E79: =SUM(E80:E84) ->  | F79: 69950 | J79: =SUM(J80:J84) -> 116960 | P79: =SUM(P80:P84) ->  | Q79: 55950 | AA79: =SUM(AA80:AA84) -> 
C80: E2960A-A08 | D80: =VLOOKUP(C80,'Detailed Product Structure'!$E$10:$J$171,4,FALSE) ->  | E80: =VLOOKUP(C80,'Detailed Product Structure'!$E$10:$J$171,6,FALSE) ->  | J80: =22300*2 -> 44600 | N80: N5306A | O80: =VLOOKUP(N80,'Detailed Product Structure'!$E$10:$J$171,4,FALSE) -> Analyzer Module for PCIe 5Gb/s (requires 2 for x 16) | P80: =VLOOKUP(N80,'Detailed Product Structure'!$E$10:$J$171,6,FALSE) -> 30300 | Y80: N5306A | Z80: =VLOOKUP(Y80,'Detailed Product Structure'!$E$10:$J$171,4,FALSE) -> Analyzer Module for PCIe 5Gb/s (requires 2 for x 16) | AA80: =VLOOKUP(Y80,'Detailed Product Structure'!$E$10:$J$171,6,FALSE) -> 30300
N81: N5306A-G08 | O81: =VLOOKUP(N81,'Detailed Product Structure'!$E$10:$J$171,4,FALSE) -> Analyzer SW License x8 for PCIe 2.5 Gb/s | P81: =VLOOKUP(N81,'Detailed Product Structure'!$E$10:$J$171,6,FALSE) -> 179 | Y81: N5306A-G08 | Z81: =VLOOKUP(Y81,'Detailed Product Structure'!$E$10:$J$171,4,FALSE) -> Analyzer SW License x8 for PCIe 2.5 Gb/s | AA81: =VLOOKUP(Y81,'Detailed Product Structure'!$E$10:$J$171,6,FALSE) -> 179
F82: 3400 | J82: 60000 | N82: E2947A | O82: Passive x8 probe for Gen1 Only | P82: 3009 | Y82: E2947A | Z82: Passive x8 probe for Gen1 Only | AA82: 3009
N83: N5317A | O83: =VLOOKUP(N83,'Detailed Product Structure'!$E$10:$J$171,4,FALSE) -> Cable to connect E2960A probe to E2960B series | P83: =VLOOKUP(N83,'Detailed Product Structure'!$E$10:$J$171,6,FALSE) -> 2708 | Y83: N5317A | Z83: =VLOOKUP(Y83,'Detailed Product Structure'!$E$10:$J$171,4,FALSE) -> Cable to connect E2960A probe to E2960B series | AA83: =VLOOKUP(Y83,'Detailed Product Structure'!$E$10:$J$171,6,FALSE) -> 2708
J84: 12360 | N84: N5540A | O84: =VLOOKUP(N84,'Detailed Product Structure'!$E$10:$J$171,4,FALSE) ->  | P84: =VLOOKUP(N84,'Detailed Product Structure'!$E$10:$J$171,6,FALSE) ->  | Y84: N5540A | Z84: =VLOOKUP(Y84,'Detailed Product Structure'!$E$10:$J$171,4,FALSE) ->  | AA84: =VLOOKUP(Y84,'Detailed Product Structure'!$E$10:$J$171,6,FALSE) -> 
B85: x16 | E85: =SUM(E86:E92) -> 0 | F85: 79950 | J85: =SUM(J86:J92) -> 168255 | P85: =SUM(P86:P92) ->  | Q85: 62950 | AA85: =SUM(AA86:AA92) ->  | AB85: 62950
C86: N/A | J86: =22300*4 -> 89200 | N86: N5306A | O86: =VLOOKUP(N86,'Detailed Product Structure'!$E$10:$J$171,4,FALSE) -> Analyzer Module for PCIe 5Gb/s (requires 2 for x 16) | P86: =VLOOKUP(N86,'Detailed Product Structure'!$E$10:$J$171,6,FALSE) -> 30300 | Y86: N5306A | Z86: =VLOOKUP(Y86,'Detailed Product Structure'!$E$10:$J$171,4,FALSE) -> Analyzer Module for PCIe 5Gb/s (requires 2 for x 16) | AA86: =VLOOKUP(Y86,'Detailed Product Structure'!$E$10:$J$171,6,FALSE) -> 30300
N87: N5306A | O87: =VLOOKUP(N87,'Detailed Product Structure'!$E$10:$J$171,4,FALSE) -> Analyzer Module for PCIe 5Gb/s (requires 2 for x 16) | P87: =VLOOKUP(N87,'Detailed Product Structure'!$E$10:$J$171,6,FALSE) -> 30300 | Y87: N5306A | Z87: =VLOOKUP(Y87,'Detailed Product Structure'!$E$10:$J$171,4,FALSE) -> Analyzer Module for PCIe 5Gb/s (requires 2 for x 16) | AA87: =VLOOKUP(Y87,'Detailed Product Structure'!$E$10:$J$171,6,FALSE) -> 30300
N88: N5306A-G16 | O88: =VLOOKUP(N88,'Detailed Product Structure'!$E$10:$J$171,4,FALSE) -> Analyzer SW License x16 for PCIe 2.5Gb/s | P88: =VLOOKUP(N88,'Detailed Product Structure'!$E$10:$J$171,6,FALSE) -> -8639 | Y88: N5306A-G16 | Z88: =VLOOKUP(Y88,'Detailed Product Structure'!$E$10:$J$171,4,FALSE) -> Analyzer SW License x16 for PCIe 2.5Gb/s | AA88: =VLOOKUP(Y88,'Detailed Product Structure'!$E$10:$J$171,6,FALSE) -> -8639
N89: N5306A-G16 | O89: =VLOOKUP(N89,'Detailed Product Structure'!$E$10:$J$171,4,FALSE) -> Analyzer SW License x16 for PCIe 2.5Gb/s | P89: =VLOOKUP(N89,'Detailed Product Structure'!$E$10:$J$171,6,FALSE) -> -8639 | Y89: N5306A-G16 | Z89: =VLOOKUP(Y89,'Detailed Product Structure'!$E$10:$J$171,4,FALSE) -> Analyzer SW License x16 for PCIe 2.5Gb/s | AA89: =VLOOKUP(Y89,'Detailed Product Structure'!$E$10:$J$171,6,FALSE) -> -8639
F90: 4000 | J90: 60000 | N90: N5315A-A16 | O90: =VLOOKUP(N90,'Detailed Product Structure'!$E$10:$J$171,4,FALSE) -> Slot Interposer x16 for PCIe 5Gb/s | P90: =VLOOKUP(N90,'Detailed Product Structure'!$E$10:$J$171,6,FALSE) -> 16861 | Y90: N5315A-A16 | Z90: =VLOOKUP(Y90,'Detailed Product Structure'!$E$10:$J$171,4,FALSE) -> Slot Interposer x16 for PCIe 5Gb/s | AA90: =VLOOKUP(Y90,'Detailed Product Structure'!$E$10:$J$171,6,FALSE) -> 16861
N91: N5317A | O91: =VLOOKUP(N91,'Detailed Product Structure'!$E$10:$J$171,4,FALSE) -> Cable to connect E2960A probe to E2960B series | P91: =VLOOKUP(N91,'Detailed Product Structure'!$E$10:$J$171,6,FALSE) -> 2708 | Y91: N5317A | Z91: =VLOOKUP(Y91,'Detailed Product Structure'!$E$10:$J$171,4,FALSE) -> Cable to connect E2960A probe to E2960B series | AA91: =VLOOKUP(Y91,'Detailed Product Structure'!$E$10:$J$171,6,FALSE) -> 2708
J92: 19055 | N92: N5540A | O92: =VLOOKUP(N92,'Detailed Product Structure'!$E$10:$J$171,4,FALSE) ->  | P92: =VLOOKUP(N92,'Detailed Product Structure'!$E$10:$J$171,6,FALSE) ->  | Y92: N5540A | Z92: =VLOOKUP(Y92,'Detailed Product Structure'!$E$10:$J$171,4,FALSE) ->  | AA92: =VLOOKUP(Y92,'Detailed Product Structure'!$E$10:$J$171,6,FALSE) -> 
B93: Probes
C94: N4221A | D94: Mid-bus Probe Gen1 (Optional) | E94: ='Detailed Product Structure'!#REF! ->  | F94: 12500 | N94: N4221A | O94: Mid-bus Probe Gen1 (Optional) | P94: ='Detailed Product Structure'!#REF! ->  | Y94: N4221A | Z94: Mid-bus Probe Gen1 (Optional) | AA94: ='Detailed Product Structure'!J140 -> 0
C95: N4221F | D95: Flying Leads Probe | E95: ='Detailed Product Structure'!#REF! ->  | N95: N4221F | O95: Flying Leads Probe | P95: ='Detailed Product Structure'!#REF! ->  | Y95: N4221F | Z95: Flying Leads Probe | AA95: ='Detailed Product Structure'!J145 -> 0 | AB95: Available in Nov 2008?
B99: Gen1 Exerciser
B101: Link | F101: LeCroy Pricing (2004) | J101: Tek Pricing (2004) | Q101: LeCroy Pricing | U101: Tek Pricing | AB101: LeCroy Pricing | AF101: Tek Pricing
C102: Gen2 Ready Configuration | F102: US | G102: Japan | H102: Asia | I102: Europe | J102: US | K102: Japan | L102: Asia | M102: Europe | N102: Gen2 Ready Configuration | Q102: US | R102: Japan | S102: Asia | T102: Europe | U102: US | V102: Japan | W102: Asia | X102: Europe | Y102: Gen2 Ready Configuration | AB102: US | AC102: Japan | AD102: Asia | AE102: Europe | AF102: US | AG102: Japan | AH102: Asia | AI102: Europe
B103: x1 | E103: =SUM(E104:E105) -> 37287 | P103: =SUM(P104:P105) -> 37287 | AA103: =SUM(AA104:AA105) -> 37287
C104: N5309A-E01 | D104: =VLOOKUP(C104,'Detailed Product Structure'!$E$10:$J$171,4,FALSE) -> Exerciser for PCIe 5Gb/s | E104: =VLOOKUP(C104,'Detailed Product Structure'!$E$10:$J$171,6,FALSE) -> 9158 | N104: N5309A-E01 | O104: =VLOOKUP(N104,'Detailed Product Structure'!$E$10:$J$171,4,FALSE) -> Exerciser for PCIe 5Gb/s | P104: =VLOOKUP(N104,'Detailed Product Structure'!$E$10:$J$171,6,FALSE) -> 9158 | Y104: N5309A-E01 | Z104: =VLOOKUP(Y104,'Detailed Product Structure'!$E$10:$J$171,4,FALSE) -> Exerciser for PCIe 5Gb/s | AA104: =VLOOKUP(Y104,'Detailed Product Structure'!$E$10:$J$171,6,FALSE) -> 9158
C105: N5309A-EX1 | D105: =VLOOKUP(C105,'Detailed Product Structure'!$E$10:$J$171,4,FALSE) -> Exerciser SW License and LTSSM for PCIe 2.5Gb/s | E105: =VLOOKUP(C105,'Detailed Product Structure'!$E$10:$J$171,6,FALSE) -> 28129 | N105: N5309A-EX1 | O105: =VLOOKUP(N105,'Detailed Product Structure'!$E$10:$J$171,4,FALSE) -> Exerciser SW License and LTSSM for PCIe 2.5Gb/s | P105: =VLOOKUP(N105,'Detailed Product Structure'!$E$10:$J$171,6,FALSE) -> 28129 | Y105: N5309A-EX1 | Z105: =VLOOKUP(Y105,'Detailed Product Structure'!$E$10:$J$171,4,FALSE) -> Exerciser SW License and LTSSM for PCIe 2.5Gb/s | AA105: =VLOOKUP(Y105,'Detailed Product Structure'!$E$10:$J$171,6,FALSE) -> 28129
B108: x4 | E108: =SUM(E109:E110) -> 49355 | F108: 36750 | P108: =SUM(P109:P110) -> 49355 | AA108: =SUM(AA109:AA110) -> 49355
C109: N5309A-E04 | D109: =VLOOKUP(C109,'Detailed Product Structure'!$E$10:$J$171,4,FALSE) -> Half Sized Exerciser and LTSSM Board x4 for PCIe 5Gb/s | E109: =VLOOKUP(C109,'Detailed Product Structure'!$E$10:$J$171,6,FALSE) -> 21226 | N109: N5309A-E04 | O109: =VLOOKUP(N109,'Detailed Product Structure'!$E$10:$J$171,4,FALSE) -> Half Sized Exerciser and LTSSM Board x4 for PCIe 5Gb/s | P109: =VLOOKUP(N109,'Detailed Product Structure'!$E$10:$J$171,6,FALSE) -> 21226 | Y109: N5309A-E04 | Z109: =VLOOKUP(Y109,'Detailed Product Structure'!$E$10:$J$171,4,FALSE) -> Half Sized Exerciser and LTSSM Board x4 for PCIe 5Gb/s | AA109: =VLOOKUP(Y109,'Detailed Product Structure'!$E$10:$J$171,6,FALSE) -> 21226
C110: N5309A-EX1 | D110: =VLOOKUP(C110,'Detailed Product Structure'!$E$10:$J$171,4,FALSE) -> Exerciser SW License and LTSSM for PCIe 2.5Gb/s | E110: =VLOOKUP(C110,'Detailed Product Structure'!$E$10:$J$171,6,FALSE) -> 28129 | N110: N5309A-EX1 | O110: =VLOOKUP(N110,'Detailed Product Structure'!$E$10:$J$171,4,FALSE) -> Exerciser SW License and LTSSM for PCIe 2.5Gb/s | P110: =VLOOKUP(N110,'Detailed Product Structure'!$E$10:$J$171,6,FALSE) -> 28129 | Y110: N5309A-EX1 | Z110: =VLOOKUP(Y110,'Detailed Product Structure'!$E$10:$J$171,4,FALSE) -> Exerciser SW License and LTSSM for PCIe 2.5Gb/s | AA110: =VLOOKUP(Y110,'Detailed Product Structure'!$E$10:$J$171,6,FALSE) -> 28129
B113: x8 | E113: =SUM(E114:E115) -> 60389 | F113: 69950 | P113: =SUM(P114:P115) -> 60389 | AA113: =SUM(AA114:AA115) -> 60389
C114: N5309A-E08 | D114: =VLOOKUP(C114,'Detailed Product Structure'!$E$10:$J$171,4,FALSE) -> Half Sized Exerciser and LTSSM Board x8 for PCIe 5Gb/s | E114: =VLOOKUP(C114,'Detailed Product Structure'!$E$10:$J$171,6,FALSE) -> 32260 | N114: N5309A-E08 | O114: =VLOOKUP(N114,'Detailed Product Structure'!$E$10:$J$171,4,FALSE) -> Half Sized Exerciser and LTSSM Board x8 for PCIe 5Gb/s | P114: =VLOOKUP(N114,'Detailed Product Structure'!$E$10:$J$171,6,FALSE) -> 32260 | Y114: N5309A-E08 | Z114: =VLOOKUP(Y114,'Detailed Product Structure'!$E$10:$J$171,4,FALSE) -> Half Sized Exerciser and LTSSM Board x8 for PCIe 5Gb/s | AA114: =VLOOKUP(Y114,'Detailed Product Structure'!$E$10:$J$171,6,FALSE) -> 32260
C115: N5309A-EX1 | D115: =VLOOKUP(C115,'Detailed Product Structure'!$E$10:$J$171,4,FALSE) -> Exerciser SW License and LTSSM for PCIe 2.5Gb/s | E115: =VLOOKUP(C115,'Detailed Product Structure'!$E$10:$J$171,6,FALSE) -> 28129 | N115: N5309A-EX1 | O115: =VLOOKUP(N115,'Detailed Product Structure'!$E$10:$J$171,4,FALSE) -> Exerciser SW License and LTSSM for PCIe 2.5Gb/s | P115: =VLOOKUP(N115,'Detailed Product Structure'!$E$10:$J$171,6,FALSE) -> 28129 | Y115: N5309A-EX1 | Z115: =VLOOKUP(Y115,'Detailed Product Structure'!$E$10:$J$171,4,FALSE) -> Exerciser SW License and LTSSM for PCIe 2.5Gb/s | AA115: =VLOOKUP(Y115,'Detailed Product Structure'!$E$10:$J$171,6,FALSE) -> 28129
B118: x16 | E118: =SUM(E119:E120) -> 71620 | P118: =SUM(P119:P120) -> 71620 | AA118: =SUM(AA119:AA120) -> 71620
C119: N5309A-E16 | D119: =VLOOKUP(C119,'Detailed Product Structure'!$E$10:$J$171,4,FALSE) -> Half Sized Exerciser and LTSSM Board x16 for PCIe 5Gb/s | E119: =VLOOKUP(C119,'Detailed Product Structure'!$E$10:$J$171,6,FALSE) -> 43491 | N119: N5309A-E16 | O119: =VLOOKUP(N119,'Detailed Product Structure'!$E$10:$J$171,4,FALSE) -> Half Sized Exerciser and LTSSM Board x16 for PCIe 5Gb/s | P119: =VLOOKUP(N119,'Detailed Product Structure'!$E$10:$J$171,6,FALSE) -> 43491 | Y119: N5309A-E16 | Z119: =VLOOKUP(Y119,'Detailed Product Structure'!$E$10:$J$171,4,FALSE) -> Half Sized Exerciser and LTSSM Board x16 for PCIe 5Gb/s | AA119: =VLOOKUP(Y119,'Detailed Product Structure'!$E$10:$J$171,6,FALSE) -> 43491
C120: N5309A-EX1 | D120: =VLOOKUP(C120,'Detailed Product Structure'!$E$10:$J$171,4,FALSE) -> Exerciser SW License and LTSSM for PCIe 2.5Gb/s | E120: =VLOOKUP(C120,'Detailed Product Structure'!$E$10:$J$171,6,FALSE) -> 28129 | N120: N5309A-EX1 | O120: =VLOOKUP(N120,'Detailed Product Structure'!$E$10:$J$171,4,FALSE) -> Exerciser SW License and LTSSM for PCIe 2.5Gb/s | P120: =VLOOKUP(N120,'Detailed Product Structure'!$E$10:$J$171,6,FALSE) -> 28129 | Y120: N5309A-EX1 | Z120: =VLOOKUP(Y120,'Detailed Product Structure'!$E$10:$J$171,4,FALSE) -> Exerciser SW License and LTSSM for PCIe 2.5Gb/s | AA120: =VLOOKUP(Y120,'Detailed Product Structure'!$E$10:$J$171,6,FALSE) -> 28129

Sheet Version History
A1: Version 2.12
A2: July 21st, 2010
A4: Changes/Enhancements/Bug Fixes
A6: Enhancement | B6: Added U4305A-004 optioin
A7: Enhancement | B7: Changed option "LTSSM" to option "LT3"
A8: Enhancement | B8: Removed Gen1 Probes
A10: Version 2.11
A11: May 12th, 2010
A13: Changes/Enhancements/Bug Fixes
A15: Enhancement | B15: Changed the chassis to N5302A/N5304A
A16: Enhancement | B16: Changed the recommended configuration for Gen3 exerciser to include Gen2 backplane (N5316A)
A18: Version 2.10
A19: August 27th
A21: Changes/Enhancements/Bug Fixes
A23: Enhancement | B23: Changed pricing to include latest June Pricing
A24: Enhancement | B24: Added the N4241Z ZIF probe
A25: Enhancement | B25: Add comments about what Gen2 ready is.
A26: Enhancement | B26: Remove comments regarding Gen1 in the Gen2 Ready config tab.
A29: Version 2.9
A30: 2009-05-08
A32: Changes/Enhancements/Bug Fixes
A34: Enhancement | B34: Added 1/2 size probes to the configurator
A35: Bug Fix | B35: Price was not configured correctly, was $1K over the real price.
A37: Version 2.8
A38: 2009-03-30
A40: Changes/Enhancements/Bug Fixes
A42: Bug Fix | B42: Mid-bus was not configured correctly after removing the direction category in the configurator
A43: Bug Fix | B43: Pricing was not configured correctly, was $2.7K over the real price.
A45: Version 2.7
A46: 2009-03-17
A48: Changes/Enhancements/Bug Fixes
A50: Bug Fix | B50: Removed N5310A product numbers
A51: Bug Fix | B51: Updated pricing of the N5310U-U26 part number (split into 2 so that 2 license are required)
A52: Enhancement | B52: Removed macros at the first page of the spreadsheet to make it easier to localize in each country.
A54: Version 2.6
A55: 2008-10-27
A57: Changes/Enhancements/Bug Fixes
A59: Enhancements | B59: Changed the reference price for Gen1 products, due to the new Gen1 pricing effective Nov 1st
A60: Enhancements | B60: Updated the LeCroy competitive pricing from LeCroy newsletter
A63: Version 2.5
A64: 2008-09-15
A66: Changes/Enhancements/Bug Fixes
A68: Bug Fix | B68: Include the E2960B-LAN in the recommendations
A69: Bug Fix | B69: Updated latest prices in OPAL (Sept Opal prices)
A70: Bug Fix | B70: Gen2 Rdy system sets the Gen1 Flying leads qty to '0'. Fixed
A71: Enhancements | B71: Added recommendation for 4-slot chassis when using x16 analyzer and extended interface module.
A72: Enhancements | B72: Added P2l Gateway with Flags support
A74: Version 2.4
A75: 2008-06-24
A77: Changes/Enhancements/Bug Fixes
A79: Bug Fix | B79: Mid bus interposer does not have pricing
A80: Bug Fix | B80: Wrong description for N5306A-G04
A82: Version 2.3
A83: 2008-06-19
A85: Changes/Enhancements/Bug Fixes
A87: Bug Fix | B87: Was recommending the N5312A when the N5315A-A16 was ordered. This is incorrect.
A88: Enhancements | B88: Added Midbus interposer to the spreadsheet
A91: Version 2.2
A92: 2008-04-08
A94: Changes/Enhancements/Bug Fixes
A96: Enhancements | B96: Added Gen2Ready configurations and price comparisons to the spreadsheet.
A97: Enhancements | B97: Added chassis to chassis cable for chassis ordering.
A98: Enhancements | B98: Added PTC as an type in the ordering guide.
A101: Version 2.1
A102: 2008-03-05
A104: Changes/Enhancements/Bug Fixes
A106: Bug Fix | B106: Incorrect calculation of quantity and discount price
A107: Bug Fix | B107: Changed name of the N5322A module
A108: Bug Fix | B108: Was not including E2941B in configuration
A109: Enhancements | B109: Added Express Card Probe
A110: Enhancements | B110: Added Pricing of N5322A and N4241F
A112: Version 2.0
A113: 2007-12-26
A115: Changes/Enhancements/Bug Fixes
A117: Enhancements | B117: Added Slot Interposer
A118: Enhancements | B118: Added Gen2 Ready Exerciser numbers
A119: Enhancements | B119: Added PTC 2, and Compliance Assured Test Package
A120: Enhancements | B120: Added Flying Lead Product Numbers
A121: Enhancements | B121: Added Extended Reciever Module Number and Selection capability.

Sheet Bundles (hidden)
A1: Configuration | B1: Products# | C1: Description | D1: Prices
A2: Analyzer and Midbus Configuration x8
B3: N5306A | C3: =VLOOKUP(B3,'Detailed Product Structure'!$E$9:$I$134,4,FALSE) -> Analyzer Module for PCIe 5Gb/s (requires 2 for x 16) | D3: =VLOOKUP(B3,'Detailed Product Structure'!$E$9:$I$134,5,FALSE) -> 26700
B4: N5306A-A08 | C4: =VLOOKUP(B4,'Detailed Product Structure'!$E$9:$I$134,4,FALSE) -> Analyzer SW License x8 for PCIe 5Gb/s | D4: =VLOOKUP(B4,'Detailed Product Structure'!$E$9:$I$134,5,FALSE) -> 0
B5: N4241A | C5: =VLOOKUP(B5,'Detailed Product Structure'!$E$9:$I$134,4,FALSE) -> Midbus Probe 2.0 bi-directional x8 for PCIe 5Gb/s | D5: =VLOOKUP(B5,'Detailed Product Structure'!$E$9:$I$134,5,FALSE) -> 0
B6: N5540A | C6: =VLOOKUP(B6,'Detailed Product Structure'!$E$9:$I$134,4,FALSE) ->  | D6: =VLOOKUP(B6,'Detailed Product Structure'!$E$9:$I$134,5,FALSE) -> 
D7: =SUM(D6:D6) -> 
A9: Analyzer and Midbus Configuration x16
B10: N5306A | C10: =VLOOKUP(B10,'Detailed Product Structure'!$E$9:$I$134,4,FALSE) -> Analyzer Module for PCIe 5Gb/s (requires 2 for x 16) | D10: =VLOOKUP(B10,'Detailed Product Structure'!$E$9:$I$134,5,FALSE) -> 26700
B11: N5306A | C11: =VLOOKUP(B11,'Detailed Product Structure'!$E$9:$I$134,4,FALSE) -> Analyzer Module for PCIe 5Gb/s (requires 2 for x 16) | D11: =VLOOKUP(B11,'Detailed Product Structure'!$E$9:$I$134,5,FALSE) -> 26700
B12: N5306A-A16 | C12: =VLOOKUP(B12,'Detailed Product Structure'!$E$9:$I$134,4,FALSE) -> Analyzer SW License x16 for PCIe 5Gb/s | D12: =VLOOKUP(B12,'Detailed Product Structure'!$E$9:$I$134,5,FALSE) -> 0
B13: N4241A | C13: =VLOOKUP(B13,'Detailed Product Structure'!$E$9:$I$134,4,FALSE) -> Midbus Probe 2.0 bi-directional x8 for PCIe 5Gb/s | D13: =VLOOKUP(B13,'Detailed Product Structure'!$E$9:$I$134,5,FALSE) -> 0
B14: N4241A | C14: =VLOOKUP(B14,'Detailed Product Structure'!$E$9:$I$134,4,FALSE) -> Midbus Probe 2.0 bi-directional x8 for PCIe 5Gb/s | D14: =VLOOKUP(B14,'Detailed Product Structure'!$E$9:$I$134,5,FALSE) -> 0
B15: N5541A | C15: =VLOOKUP(B15,'Detailed Product Structure'!$E$9:$I$134,4,FALSE) ->  | D15: =VLOOKUP(B15,'Detailed Product Structure'!$E$9:$I$134,5,FALSE) -> 
D16: =SUM(D10:D15) -> 
A18: Analyzer and Interposer x1
B19: N5306A | C19: =VLOOKUP(B19,'Detailed Product Structure'!$E$9:$I$134,4,FALSE) -> Analyzer Module for PCIe 5Gb/s (requires 2 for x 16) | D19: =VLOOKUP(B19,'Detailed Product Structure'!$E$9:$I$134,5,FALSE) -> 26700
B20: N5306A-A08 | C20: =VLOOKUP(B20,'Detailed Product Structure'!$E$9:$I$134,4,FALSE) -> Analyzer SW License x8 for PCIe 5Gb/s | D20: =VLOOKUP(B20,'Detailed Product Structure'!$E$9:$I$134,5,FALSE) -> 0
B21: N5307A-A01 | C21: =VLOOKUP(B21,'Detailed Product Structure'!$E$9:$I$134,4,FALSE) ->  | D21: =VLOOKUP(B21,'Detailed Product Structure'!$E$9:$I$134,5,FALSE) -> 
B22: N5540A | C22: =VLOOKUP(B22,'Detailed Product Structure'!$E$9:$I$134,4,FALSE) ->  | D22: =VLOOKUP(B22,'Detailed Product Structure'!$E$9:$I$134,5,FALSE) -> 
D23: =SUM(D19:D22) -> 
A25: Exerciser and LTSSM x1
B26: N5308A-E01 | C26: =VLOOKUP(B26,'Detailed Product Structure'!$E$9:$I$134,4,FALSE) ->  | D26: =VLOOKUP(B26,'Detailed Product Structure'!$E$9:$I$134,5,FALSE) -> 
D27: =SUM(D26) -> 
A29: Exerciser and LTSSM x4
B30: N5308A-E04 | C30: =VLOOKUP(B30,'Detailed Product Structure'!$E$9:$I$134,4,FALSE) ->  | D30: =VLOOKUP(B30,'Detailed Product Structure'!$E$9:$I$134,5,FALSE) -> 
D31: =SUM(D30) -> 
A33: LTSSM x8
B34: N5308A-L08 | C34: =VLOOKUP(B34,'Detailed Product Structure'!$E$9:$I$134,4,FALSE) ->  | D34: =VLOOKUP(B34,'Detailed Product Structure'!$E$9:$I$134,5,FALSE) -> 
D35: =SUM(D34) -> 
A37: LTSSM x16
B38: N5308A-L16 | C38: =VLOOKUP(B38,'Detailed Product Structure'!$E$9:$I$134,4,FALSE) ->  | D38: =VLOOKUP(B38,'Detailed Product Structure'!$E$9:$I$134,5,FALSE) -> 
D39: =SUM(D38) -> 
A41: Bundle Analyzer and Exerciser with Interposer x1
B42: N5306A | C42: =VLOOKUP(B42,'Detailed Product Structure'!$E$9:$I$134,4,FALSE) -> Analyzer Module for PCIe 5Gb/s (requires 2 for x 16) | D42: =VLOOKUP(B42,'Detailed Product Structure'!$E$9:$I$134,5,FALSE) -> 26700
B43: N5306A-A08 | C43: =VLOOKUP(B43,'Detailed Product Structure'!$E$9:$I$134,4,FALSE) -> Analyzer SW License x8 for PCIe 5Gb/s | D43: =VLOOKUP(B43,'Detailed Product Structure'!$E$9:$I$134,5,FALSE) -> 0
B44: N4241A | C44: =VLOOKUP(B44,'Detailed Product Structure'!$E$9:$I$134,4,FALSE) -> Midbus Probe 2.0 bi-directional x8 for PCIe 5Gb/s | D44: =VLOOKUP(B44,'Detailed Product Structure'!$E$9:$I$134,5,FALSE) -> 0
B45: N5540A | C45: =VLOOKUP(B45,'Detailed Product Structure'!$E$9:$I$134,4,FALSE) ->  | D45: =VLOOKUP(B45,'Detailed Product Structure'!$E$9:$I$134,5,FALSE) -> 
B46: N5308A-E01 | C46: =VLOOKUP(B46,'Detailed Product Structure'!$E$9:$I$134,4,FALSE) ->  | D46: =VLOOKUP(B46,'Detailed Product Structure'!$E$9:$I$134,5,FALSE) -> 
D47: =SUM(D42:D46) -> 
A49: Bundle Anlyzer and Exerciser with Midbus 2.0 x8
B50: N5306A | C50: =VLOOKUP(B50,'Detailed Product Structure'!$E$9:$I$134,4,FALSE) -> Analyzer Module for PCIe 5Gb/s (requires 2 for x 16) | D50: =VLOOKUP(B50,'Detailed Product Structure'!$E$9:$I$134,5,FALSE) -> 26700
B51: N5306A | C51: =VLOOKUP(B51,'Detailed Product Structure'!$E$9:$I$134,4,FALSE) -> Analyzer Module for PCIe 5Gb/s (requires 2 for x 16) | D51: =VLOOKUP(B51,'Detailed Product Structure'!$E$9:$I$134,5,FALSE) -> 26700
B52: N5306A-A16 | C52: =VLOOKUP(B52,'Detailed Product Structure'!$E$9:$I$134,4,FALSE) -> Analyzer SW License x16 for PCIe 5Gb/s | D52: =VLOOKUP(B52,'Detailed Product Structure'!$E$9:$I$134,5,FALSE) -> 0
B53: N4241A | C53: =VLOOKUP(B53,'Detailed Product Structure'!$E$9:$I$134,4,FALSE) -> Midbus Probe 2.0 bi-directional x8 for PCIe 5Gb/s | D53: =VLOOKUP(B53,'Detailed Product Structure'!$E$9:$I$134,5,FALSE) -> 0
B54: N4241A | C54: =VLOOKUP(B54,'Detailed Product Structure'!$E$9:$I$134,4,FALSE) -> Midbus Probe 2.0 bi-directional x8 for PCIe 5Gb/s | D54: =VLOOKUP(B54,'Detailed Product Structure'!$E$9:$I$134,5,FALSE) -> 0
B55: N5541A | C55: =VLOOKUP(B55,'Detailed Product Structure'!$E$9:$I$134,4,FALSE) ->  | D55: =VLOOKUP(B55,'Detailed Product Structure'!$E$9:$I$134,5,FALSE) -> 
B56: N5308A-L08 | C56: =VLOOKUP(B56,'Detailed Product Structure'!$E$9:$I$134,4,FALSE) ->  | D56: =VLOOKUP(B56,'Detailed Product Structure'!$E$9:$I$134,5,FALSE) -> 
C57: =VLOOKUP(B57,'Detailed Product Structure'!$E$9:$I$134,4,FALSE) ->  | D57: =SUM(D50:D56) -> 
C58: =VLOOKUP(B58,'Detailed Product Structure'!$E$9:$I$134,4,FALSE) ->  | D58: =VLOOKUP(B58,'Detailed Product Structure'!$E$9:$I$134,5,FALSE) -> 
C59: =VLOOKUP(B59,'Detailed Product Structure'!$E$9:$I$134,4,FALSE) ->  | D59: =VLOOKUP(B59,'Detailed Product Structure'!$E$9:$I$134,5,FALSE) -> 
C60: =VLOOKUP(B60,'Detailed Product Structure'!$E$9:$I$134,4,FALSE) ->  | D60: =VLOOKUP(B60,'Detailed Product Structure'!$E$9:$I$134,5,FALSE) -> 
C61: =VLOOKUP(B61,'Detailed Product Structure'!$E$9:$I$134,4,FALSE) ->  | D61: =VLOOKUP(B61,'Detailed Product Structure'!$E$9:$I$134,5,FALSE) -> 
C62: =VLOOKUP(B62,'Detailed Product Structure'!$E$9:$I$134,4,FALSE) ->  | D62: =VLOOKUP(B62,'Detailed Product Structure'!$E$9:$I$134,5,FALSE) -> 
C63: =VLOOKUP(B63,'Detailed Product Structure'!$E$9:$I$134,4,FALSE) ->  | D63: =VLOOKUP(B63,'Detailed Product Structure'!$E$9:$I$134,5,FALSE) -> 
C64: =VLOOKUP(B64,'Detailed Product Structure'!$E$9:$I$134,4,FALSE) ->  | D64: =VLOOKUP(B64,'Detailed Product Structure'!$E$9:$I$134,5,FALSE) -> 
C65: =VLOOKUP(B65,'Detailed Product Structure'!$E$9:$I$134,4,FALSE) ->  | D65: =VLOOKUP(B65,'Detailed Product Structure'!$E$9:$I$134,5,FALSE) -> 
C66: =VLOOKUP(B66,'Detailed Product Structure'!$E$9:$I$134,4,FALSE) ->  | D66: =VLOOKUP(B66,'Detailed Product Structure'!$E$9:$I$134,5,FALSE) -> 
C67: =VLOOKUP(B67,'Detailed Product Structure'!$E$9:$I$134,4,FALSE) ->  | D67: =VLOOKUP(B67,'Detailed Product Structure'!$E$9:$I$134,5,FALSE) -> 
C68: =VLOOKUP(B68,'Detailed Product Structure'!$E$9:$I$134,4,FALSE) ->  | D68: =VLOOKUP(B68,'Detailed Product Structure'!$E$9:$I$134,5,FALSE) -> 
C69: =VLOOKUP(B69,'Detailed Product Structure'!$E$9:$I$134,4,FALSE) ->  | D69: =VLOOKUP(B69,'Detailed Product Structure'!$E$9:$I$134,5,FALSE) -> 
C70: =VLOOKUP(B70,'Detailed Product Structure'!$E$9:$I$134,4,FALSE) ->  | D70: =VLOOKUP(B70,'Detailed Product Structure'!$E$9:$I$134,5,FALSE) -> 
C71: =VLOOKUP(B71,'Detailed Product Structure'!$E$9:$I$134,4,FALSE) ->  | D71: =VLOOKUP(B71,'Detailed Product Structure'!$E$9:$I$134,5,FALSE) -> 
C72: =VLOOKUP(B72,'Detailed Product Structure'!$E$9:$I$134,4,FALSE) ->  | D72: =VLOOKUP(B72,'Detailed Product Structure'!$E$9:$I$134,5,FALSE) -> 
C73: =VLOOKUP(B73,'Detailed Product Structure'!$E$9:$I$134,4,FALSE) ->  | D73: =VLOOKUP(B73,'Detailed Product Structure'!$E$9:$I$134,5,FALSE) -> 
C74: =VLOOKUP(B74,'Detailed Product Structure'!$E$9:$I$134,4,FALSE) ->  | D74: =VLOOKUP(B74,'Detailed Product Structure'!$E$9:$I$134,5,FALSE) -> 
C75: =VLOOKUP(B75,'Detailed Product Structure'!$E$9:$I$134,4,FALSE) ->  | D75: =VLOOKUP(B75,'Detailed Product Structure'!$E$9:$I$134,5,FALSE) -> 
C76: =VLOOKUP(B76,'Detailed Product Structure'!$E$9:$I$134,4,FALSE) ->  | D76: =VLOOKUP(B76,'Detailed Product Structure'!$E$9:$I$134,5,FALSE) -> 
C77: =VLOOKUP(B77,'Detailed Product Structure'!$E$9:$I$134,4,FALSE) ->  | D77: =VLOOKUP(B77,'Detailed Product Structure'!$E$9:$I$134,5,FALSE) -> 
C78: =VLOOKUP(B78,'Detailed Product Structure'!$E$9:$I$134,4,FALSE) ->  | D78: =VLOOKUP(B78,'Detailed Product Structure'!$E$9:$I$134,5,FALSE) -> 

Sheet Pulldowns (hidden)
A1: Product Group | B1: Product Category | C1: RMU :Sub-Family | E1: Owner | F1: Warranty | G1: Calibration Interval | I1: New / Change
A2: ParBERT | C2: 256459 : ParBERT | E2: Thorsten Goetzelmann / TN 778 -1215 | F2: 1 Year RTA | G2: 1 Year | I2: New
A3: Serial BERT | C3: 259637 : Serial_BERT | E3: Ellen Spindler / TN 778-8326 | F3: 1 Year RTA with extension to 3 & 5 year | G3: 2 Year | I3: Remove
A4: Pulse Generator | B4: Starbase | C4: 256460 : PPGs | E4: Beate Hoehne / TN 778-3024 | F4: 3 Year RTA | G4: 3 Year | I4: Change
B5: 8110A | C5: 256462 : SPT | E5: Michael Droemmer / TN 778-3321 | F5: 1 Year Onsite | G5: 4 Year
B6: 8114A | E6: Sandra Oberdorfer / TN 590-2221 | F6: 1 Year Onsite with extension to 3 & 5 years | G6: 5 Year
B7: 8133A | E7: Joerg Striegel / TN 778-8329 | F7: ??? | G7: N.A.
B8: 81133A | E8: Alexander Schmidt (Bitifye) | G8: ???
B9: 8305A, 8306A CASS | E9: ???
B10: Others, 3324, Accessories
C11: ???
A12: RMD
A13: SPT
A21: DATA VALIDATION PULL-DOWN MENUS:
A22: 1. Setup the list on sheet 2 (THIS SHEET) under the headers
A23: 2. On sheet 1 (FastTrack Form) select Insert, Name, Define
A24: 3. Enter a name (no spaces) - remember name
A25: 4. For the range select the list range on sheet 2
A26: 5. Click Add, then OK.
A27: 6. Pick the cell where the data is to be entered
A28: 7. Select Data, Validation…
A29: 8. Choose List
A30: 9. In the source box put in the name you created with preceding = sign
